Workbook

Sheet 计数统计表
B1: 工艺学硕 | C1: 工艺专硕 | D1: 催化学硕 | E1: 催化专硕 | F1: 工程学硕 | G1: 工程专硕 | H1: 环工学硕 | I1: 环工专硕 | J1: 环科学硕 | K1: 国际班 | L1: 20级辅导员助管 | M1: 19级辅导员助管 | N1: 总计
A2: 人数 | B2: 56 | C2: 35 | D2: 29 | E2: 17 | F2: 37 | G2: 25 | H2: 19 | I2: 17 | J2: 13 | K2: 10 | L2: 7 | M2: 9 | N2: =SUM(B2:M2) -> 274

Sheet 工艺学硕
A1: 序号 | B1: 学号 | C1: 姓名 | D1: 方向 | E1: 德育成绩 | K1: 智育成绩 | Q1: 文体成绩 | W1: 总分 | X1: 排名
E2: 基础分 | F2: 奖励分 | G2: 惩罚分 | H2: 个人德育总分 | I2: 个人德育总分/基准 | J2: 德育总成绩 | K2: 学习成绩分 | L2: 奖励分 | M2: 惩罚分 | N2: 个人智育总分 | O2: 个人智育总分/基准 | P2: 智育总成绩 | Q2: 基本分 | R2: 奖励分 | S2: 惩罚分 | T2: 个人文体总分 | U2: 个人文体总分/基准 | V2: 文体总成绩
A3: 1 | B3: 2020210569 | C3: 徐伟杰 | D3: 工艺学硕 | E3: 98.4034483 | F3: 15.2000000 | G3: 0.0000000 | H3: =E3+F3+G3 -> 113.6034483 | I3: 0.9778286 | J3: =I3*100 -> 97.7828565 | K3: 88.3932773 | L3: 0.0000000 | M3: 0.0000000 | N3: =K3+L3+M3 -> 88.3932773 | O3: 0.9668703 | P3: =O3*100 -> 96.6870342 | Q3: 100.0000000 | R3: 16.5000000 | S3: 0.0000000 | T3: =Q3+R3+S3 -> 116.5000000 | U3: 0.9497283 | V3: =U3*100 -> 94.9728261 | W3: =J3*0.2+P3*0.7+V3*0.1 -> 96.7347779 | X3: 1
A4: 2 | B4: 2020210586 | C4: 高灿 | D4: 工艺学硕 | E4: 98.0625000 | F4: 7.5000000 | G4: 0.0000000 | H4: 105.5625000 | I4: 0.9086170 | J4: 90.8617031 | K4: 85.5470588 | L4: 5.8750000 | M4: 0.0000000 | N4: 91.4220588 | O4: 1.0000000 | P4: 100.0000000 | Q4: 100.0000000 | R4: 0.5000000 | S4: 0.0000000 | T4: 100.5000000 | U4: 0.8192935 | V4: 81.9293478 | W4: 96.3652754 | X4: 2
A5: 3 | B5: 2020210611 | C5: 孙洋 | D5: 工艺学硕 | E5: 98.1718750 | F5: 4.0000000 | G5: 0.0000000 | H5: 102.1718750 | I5: 0.8794326 | J5: 87.9432618 | K5: 85.6500000 | L5: 4.1666667 | M5: 0.0000000 | N5: 89.8166667 | O5: 0.9824398 | P5: 98.2439772 | Q5: 100.0000000 | R5: 22.6666667 | S5: 0.0000000 | T5: 122.6666667 | U5: 1.0000000 | V5: 100.0000000 | W5: 96.3594364 | X5: 3
A6: 4 | B6: 2020210572 | C6: 范夏雨 | D6: 工艺学硕 | E6: 98.3310345 | F6: 9.6000000 | G6: 0.0000000 | H6: 107.9310345 | I6: 0.9290039 | J6: 92.9003918 | K6: 89.2666667 | L6: 0.0000000 | M6: 0.0000000 | N6: 89.2666667 | O6: 0.9764237 | P6: 97.6423719 | Q6: 100.0000000 | R6: 0.5000000 | S6: 0.0000000 | T6: 100.5000000 | U6: 0.8192935 | V6: 81.9293478 | W6: 95.1226735 | X6: 4
A7: 5 | B7: 2020210565 | C7: 林润丹 | D7: 工艺学硕 | E7: 98.2344828 | F7: 3.0000000 | G7: 0.0000000 | H7: 101.2344828 | I7: 0.8713641 | J7: 87.1364122 | K7: 84.2850000 | L7: 4.9305556 | M7: 0.0000000 | N7: 89.2155556 | O7: 0.9758647 | P7: 97.5864651 | Q7: 100.0000000 | R7: 0.5000000 | S7: 0.0000000 | T7: 100.5000000 | U7: 0.8192935 | V7: 81.9293478 | W7: 93.9307428 | X7: 5
A8: 6 | B8: 2020210612 | C8: 塔娜 | D8: 工艺学硕 | E8: 98.1937500 | F8: 5.5000000 | G8: 0.0000000 | H8: 103.6937500 | I8: 0.8925320 | J8: 89.2531981 | K8: 86.0617647 | L8: 2.5000000 | M8: 0.0000000 | N8: 88.5617647 | O8: 0.9687133 | P8: 96.8713304 | Q8: 100.0000000 | R8: 0.5000000 | S8: 0.0000000 | T8: 100.5000000 | U8: 0.8192935 | V8: 81.9293478 | W8: 93.8535057 | X8: 6
A9: 7 | B9: 2020210631 | C9: 赵鲁媛 | D9: 工艺学硕 | E9: 98.1281250 | F9: 3.5000000 | G9: 0.0000000 | H9: 101.6281250 | I9: 0.8747524 | J9: 87.4752352 | K9: 88.8545455 | L9: 0.0000000 | M9: 0.0000000 | N9: 88.8545455 | O9: 0.9719158 | P9: 97.1915822 | Q9: 100.0000000 | R9: 0.5000000 | S9: 0.0000000 | T9: 100.5000000 | U9: 0.8192935 | V9: 81.9293478 | W9: 93.7220894 | X9: 7
A10: 8 | B10: 2020210526 | C10: 章梦琳 | D10: 工艺学硕 | E10: 98.4275862 | F10: 7.3000000 | G10: 0.0000000 | H10: 105.7275862 | I10: 0.9100380 | J10: 91.0037991 | K10: 87.2350000 | L10: 0.0000000 | M10: 0.0000000 | N10: 87.2350000 | O10: 0.9542008 | P10: 95.4200782 | Q10: 100.0000000 | R10: 5.5000000 | S10: 0.0000000 | T10: 105.5000000 | U10: 0.8600543 | V10: 86.0054348 | W10: 93.5953580 | X10: 8
A11: 9 | B11: 2020210627 | C11: 贾荣玉 | D11: 工艺学硕 | E11: 98.0625000 | F11: 1.5000000 | G11: 0.0000000 | H11: 99.5625000 | I11: 0.8569727 | J11: 85.6972723 | K11: 88.9558824 | L11: 0.0000000 | M11: 0.0000000 | N11: 88.9558824 | O11: 0.9730243 | P11: 97.3024273 | Q11: 100.0000000 | R11: 0.5000000 | S11: 0.0000000 | T11: 100.5000000 | U11: 0.8192935 | V11: 81.9293478 | W11: 93.4440884 | X11: 9
A12: 10 | B12: 2020210511 | C12: 杨浩轩 | D12: 工艺学硕 | E12: 98.1137931 | F12: 4.0000000 | G12: 0.0000000 | H12: 102.1137931 | I12: 0.8789327 | J12: 87.8932684 | K12: 87.9541176 | L12: 0.0000000 | M12: 0.0000000 | N12: 87.9541176 | O12: 0.9620667 | P12: 96.2066691 | Q12: 100.0000000 | R12: 1.1000000 | S12: 0.0000000 | T12: 101.1000000 | U12: 0.8241848 | V12: 82.4184783 | W12: 93.1651699 | X12: 10
A13: 11 | B13: 2020210519 | C13: 李东泽 | D13: 工艺学硕 | E13: 98.2827586 | F13: 1.5000000 | G13: 0.0000000 | H13: 99.7827586 | I13: 0.8588686 | J13: 85.8868574 | K13: 85.4623529 | L13: 2.9000000 | M13: 0.0000000 | N13: 88.3623529 | O13: 0.9665321 | P13: 96.6532083 | Q13: 100.0000000 | R13: 0.5000000 | S13: 0.0000000 | T13: 100.5000000 | U13: 0.8192935 | V13: 81.9293478 | W13: 93.0275521 | X13: 11
A14: 12 | B14: 2020210566 | C14: 张细璐 | D14: 工艺学硕 | E14: 98.2827586 | F14: 0.5000000 | G14: 0.0000000 | H14: 98.7827586 | I14: 0.8502612 | J14: 85.0261190 | K14: 83.2450000 | L14: 4.9305556 | M14: 0.0000000 | N14: 88.1755556 | O14: 0.9644888 | P14: 96.4488841 | Q14: 100.0000000 | R14: 0.5000000 | S14: 0.0000000 | T14: 100.5000000 | U14: 0.8192935 | V14: 81.9293478 | W14: 92.7123774 | X14: 12
A15: 13 | B15: 2020210531 | C15: 盛奕琪 | D15: 工艺学硕 | E15: 98.2827586 | F15: 1.0000000 | G15: 0.0000000 | H15: 99.2827586 | I15: 0.8545649 | J15: 85.4564882 | K15: 85.9300000 | L15: 1.8750000 | M15: 0.0000000 | N15: 87.8050000 | O15: 0.9604356 | P15: 96.0435601 | Q15: 100.0000000 | R15: 1.1000000 | S15: 0.0000000 | T15: 101.1000000 | U15: 0.8241848 | V15: 82.4184783 | W15: 92.5636375 | X15: 13
A16: 14 | B16: 2020210606 | C16: 冯甜甜 | D16: 工艺学硕 | E16: 98.1937500 | F16: 7.0000000 | G16: 0.0000000 | H16: 105.1937500 | I16: 0.9054431 | J16: 90.5443058 | K16: 86.4058824 | L16: 0.0000000 | M16: 0.0000000 | N16: 86.4058824 | O16: 0.9451317 | P16: 94.5131661 | Q16: 100.0000000 | R16: 0.5000000 | S16: 0.0000000 | T16: 100.5000000 | U16: 0.8192935 | V16: 81.9293478 | W16: 92.4610122 | X16: 14
A17: 15 | B17: 2020210559 | C17: 崔子琦 | D17: 工艺学硕 | E17: 98.3068966 | F17: 2.5000000 | G17: 0.0000000 | H17: 100.8068966 | I17: 0.8676837 | J17: 86.7683723 | K17: 84.9875000 | L17: 2.0000000 | M17: 0.0000000 | N17: 86.9875000 | O17: 0.9514936 | P17: 95.1493558 | Q17: 100.0000000 | R17: 0.0000000 | S17: 0.0000000 | T17: 100.0000000 | U17: 0.8152174 | V17: 81.5217391 | W17: 92.1103974 | X17: 15
A18: 16 | B18: 2020210591 | C18: 王琦 | D18: 工艺学硕 | E18: 98.1937500 | F18: 7.0000000 | G18: 0.0000000 | H18: 105.1937500 | I18: 0.9054431 | J18: 90.5443058 | K18: 85.3450000 | L18: 0.4500000 | M18: 0.0000000 | N18: 85.7950000 | O18: 0.9384497 | P18: 93.8449660 | Q18: 100.0000000 | R18: 0.5000000 | S18: 0.0000000 | T18: 100.5000000 | U18: 0.8192935 | V18: 81.9293478 | W18: 91.9932721 | X18: 16
A19: 17 | B19: 2020210596 | C19: 邓开鑫 | D19: 工艺学硕 | E19: 98.1281250 | F19: 4.0000000 | G19: 0.0000000 | H19: 102.1281250 | I19: 0.8790560 | J19: 87.9056044 | K19: 86.3090909 | L19: 0.0000000 | M19: 0.0000000 | N19: 86.3090909 | O19: 0.9440729 | P19: 94.4072930 | Q19: 100.0000000 | R19: 0.5000000 | S19: 0.0000000 | T19: 100.5000000 | U19: 0.8192935 | V19: 81.9293478 | W19: 91.8591607 | X19: 17
A20: 18 | B20: 2020210622 | C20: 王巍树 | D20: 工艺学硕 | E20: 98.1062500 | F20: 4.0000000 | G20: 0.0000000 | H20: 102.1062500 | I20: 0.8788678 | J20: 87.8867758 | K20: 86.1394958 | L20: 0.0000000 | M20: 0.0000000 | N20: 86.1394958 | O20: 0.9422179 | P20: 94.2217851 | Q20: 100.0000000 | R20: 0.5000000 | S20: 0.0000000 | T20: 100.5000000 | U20: 0.8192935 | V20: 81.9293478 | W20: 91.7255395 | X20: 18
A21: 19 | B21: 2020210618 | C21: 邓一龙 | D21: 工艺学硕 | E21: 98.1718750 | F21: 8.6000000 | G21: 0.0000000 | H21: 106.7718750 | I21: 0.9190266 | J21: 91.9026586 | K21: 85.0000000 | L21: 0.0000000 | M21: 0.0000000 | N21: 85.0000000 | O21: 0.9297537 | P21: 92.9753728 | Q21: 100.0000000 | R21: 0.6000000 | S21: 0.0000000 | T21: 100.6000000 | U21: 0.8201087 | V21: 82.0108696 | W21: 91.6643796 | X21: 19
A22: 20 | B22: 2020210624 | C22: 陈冬冬 | D22: 工艺学硕 | E22: 98.0625000 | F22: 8.5000000 | G22: 0.0000000 | H22: 106.5625000 | I22: 0.9172244 | J22: 91.7224415 | K22: 84.6631579 | L22: 0.0000000 | M22: 0.0000000 | N22: 84.6631579 | O22: 0.9260693 | P22: 92.6069255 | Q22: 100.0000000 | R22: 0.5000000 | S22: 0.0000000 | T22: 100.5000000 | U22: 0.8192935 | V22: 81.9293478 | W22: 91.3622709 | X22: 20
A23: 21 | B23: 2020210621 | C23: 姜少威 | D23: 工艺学硕 | E23: 98.1500000 | F23: 2.5000000 | G23: 0.0000000 | H23: 100.6500000 | I23: 0.8663333 | J23: 86.6333254 | K23: 85.2277311 | L23: 0.0000000 | M23: 0.0000000 | N23: 85.2277311 | O23: 0.9322447 | P23: 93.2244714 | Q23: 100.0000000 | R23: 7.5000000 | S23: 0.0000000 | T23: 107.5000000 | U23: 0.8763587 | V23: 87.6358696 | W23: 91.3473820 | X23: 21
A24: 22 | B24: 2020210506 | C24: 王金亭 | D24: 工艺学硕 | E24: 98.1500000 | F24: 1.5000000 | G24: 0.0000000 | H24: 99.6500000 | I24: 0.8577259 | J24: 85.7725870 | K24: 86.1729412 | L24: 0.0000000 | M24: 0.0000000 | N24: 86.1729412 | O24: 0.9425837 | P24: 94.2583686 | Q24: 100.0000000 | R24: 0.5000000 | S24: 0.0000000 | T24: 100.5000000 | U24: 0.8192935 | V24: 81.9293478 | W24: 91.3283102 | X24: 22
A25: 23 | B25: 2020210542 | C25: 农谨毓 | D25: 工艺学硕 | E25: 95.2344828 | F25: 6.5000000 | G25: 0.0000000 | H25: 101.7344828 | I25: 0.8756678 | J25: 87.5667814 | K25: 85.5300000 | L25: 0.0000000 | M25: 0.0000000 | N25: 85.5300000 | O25: 0.9355510 | P25: 93.5551016 | Q25: 100.0000000 | R25: 0.5000000 | S25: 0.0000000 | T25: 100.5000000 | U25: 0.8192935 | V25: 81.9293478 | W25: 91.1948622 | X25: 23
A26: 24 | B26: 2020210568 | C26: 秦文强 | D26: 工艺学硕 | E26: 98.3793103 | F26: 17.8000000 | G26: 0.0000000 | H26: 116.1793103 | I26: 1.0000000 | J26: 100.0000000 | K26: 81.5966387 | L26: 0.5000000 | M26: 0.0000000 | N26: 82.0966387 | O26: 0.8979960 | P26: 89.7995951 | Q26: 100.0000000 | R26: 2.1000000 | S26: 0.0000000 | T26: 102.1000000 | U26: 0.8323370 | V26: 83.2336957 | W26: 91.1830861 | X26: 24
A27: 25 | B27: 2020210577 | C27: 张海芹 | D27: 工艺学硕 | E27: 98.3793103 | F27: 0.0000000 | G27: 0.0000000 | H27: 98.3793103 | I27: 0.8467886 | J27: 84.6788555 | K27: 86.2473684 | L27: 0.0000000 | M27: 0.0000000 | N27: 86.2473684 | O27: 0.9433978 | P27: 94.3397792 | Q27: 100.0000000 | R27: 0.5000000 | S27: 0.0000000 | T27: 100.5000000 | U27: 0.8192935 | V27: 81.9293478 | W27: 91.1665513 | X27: 25
A28: 26 | B28: 2020210524 | C28: 王福颖 | D28: 工艺学硕 | E28: 98.4275862 | F28: 6.0000000 | G28: 0.0000000 | H28: 104.4275862 | I28: 0.8988484 | J28: 89.8848391 | K28: 82.8600000 | L28: 2.0000000 | M28: 0.0000000 | N28: 84.8600000 | O28: 0.9282224 | P28: 92.8222369 | Q28: 100.0000000 | R28: 0.5000000 | S28: 0.0000000 | T28: 100.5000000 | U28: 0.8192935 | V28: 81.9293478 | W28: 91.1454684 | X28: 26
A29: 27 | B29: 2020210590 | C29: 罗菲 | D29: 工艺学硕 | E29: 98.0843750 | F29: 6.5000000 | G29: 0.0000000 | H29: 104.5843750 | I29: 0.9001979 | J29: 90.0197933 | K29: 84.7500000 | L29: 0.0000000 | M29: 0.0000000 | N29: 84.7500000 | O29: 0.9270192 | P29: 92.7019158 | Q29: 100.0000000 | R29: 0.5000000 | S29: 0.0000000 | T29: 100.5000000 | U29: 0.8192935 | V29: 81.9293478 | W29: 91.0882345 | X29: 27
A30: 28 | B30: 2020210520 | C30: 邹予桐 | D30: 工艺学硕 | E30: 98.3310345 | F30: 10.8000000 | G30: (15.0000000) | H30: 94.1310345 | I30: 0.8102220 | J30: 81.0222011 | K30: 83.7458824 | L30: 2.7777778 | M30: 0.0000000 | N30: 86.5236601 | O30: 0.9464199 | P30: 94.6419948 | Q30: 100.0000000 | R30: 0.5000000 | S30: 0.0000000 | T30: 100.5000000 | U30: 0.8192935 | V30: 81.9293478 | W30: 90.6467713 | X30: 28
A31: 29 | B31: 2020210573 | C31: 薛宗浩 | D31: 工艺学硕 | E31: 98.4275862 | F31: 11.1000000 | G31: 0.0000000 | H31: 109.5275862 | I31: 0.9427461 | J31: 94.2746052 | K31: 82.2098039 | L31: 0.5000000 | M31: 0.0000000 | N31: 82.7098039 | O31: 0.9047029 | P31: 90.4702924 | Q31: 100.0000000 | R31: 2.1000000 | S31: 0.0000000 | T31: 102.1000000 | U31: 0.8323370 | V31: 83.2336957 | W31: 90.5074953 | X31: 29
A32: 30 | B32: 2020210619 | C32: 黄佳美 | D32: 工艺学硕 | E32: 98.1937500 | F32: 8.0000000 | G32: 0.0000000 | H32: 106.1937500 | I32: 0.9140504 | J32: 91.4050442 | K32: 83.2000000 | L32: 0.0000000 | M32: 0.0000000 | N32: 83.2000000 | O32: 0.9100648 | P32: 91.0064825 | Q32: 100.0000000 | R32: 0.6000000 | S32: 0.0000000 | T32: 100.6000000 | U32: 0.8201087 | V32: 82.0108696 | W32: 90.1866336 | X32: 30
A33: 31 | B33: 2020210560 | C33: 刘慧敏 | D33: 工艺学硕 | E33: 98.3068966 | F33: 4.5000000 | G33: 0.0000000 | H33: 102.8068966 | I33: 0.8848985 | J33: 88.4898492 | K33: 83.9287500 | L33: 0.0000000 | M33: 0.0000000 | N33: 83.9287500 | O33: 0.9180361 | P33: 91.8036096 | Q33: 100.0000000 | R33: 0.5000000 | S33: 0.0000000 | T33: 100.5000000 | U33: 0.8192935 | V33: 81.9293478 | W33: 90.1534314 | X33: 31
A34: 32 | B34: 2020210510 | C34: 王鹏泉 | D34: 工艺学硕 | E34: 98.1137931 | F34: 3.5000000 | G34: 0.0000000 | H34: 101.6137931 | I34: 0.8746290 | J34: 87.4628992 | K34: 83.8731092 | L34: 0.0000000 | M34: 0.0000000 | N34: 83.8731092 | O34: 0.9174275 | P34: 91.7427482 | Q34: 100.0000000 | R34: 0.0000000 | S34: 0.0000000 | T34: 100.0000000 | U34: 0.8152174 | V34: 81.5217391 | W34: 89.8646775 | X34: 32
A35: 33 | B35: 2020210589 | C35: 韩美玉 | D35: 工艺学硕 | E35: 98.0625000 | F35: 0.5000000 | G35: 0.0000000 | H35: =E35+F35+G35 -> 98.5625000 | I35: 0.8483653 | J35: =I35*100 -> 84.8365339 | K35: 83.9741176 | L35: 0.0000000 | M35: 0.0000000 | N35: =K35+L35+M35 -> 83.9741176 | O35: 0.9185323 | P35: =O35*100 -> 91.8532340 | Q35: 100.0000000 | R35: 0.5000000 | S35: 0.0000000 | T35: =Q35+R35+S35 -> 100.5000000 | U35: 0.8192935 | V35: =U35*100 -> 81.9293478 | W35: =J35*0.2+P35*0.7+V35*0.1 -> 89.4575054 | X35: 33
A36: 34 | B36: 2020210613 | C36: 张成霄 | D36: 工艺学硕 | E36: 98.0843750 | F36: 0.0000000 | G36: 0.0000000 | H36: 98.0843750 | I36: 0.8442499 | J36: 84.4249933 | K36: 84.1275000 | L36: 0.0000000 | M36: 0.0000000 | N36: 84.1275000 | O36: 0.9202101 | P36: 92.0210079 | Q36: 100.0000000 | R36: 0.0000000 | S36: 0.0000000 | T36: 100.0000000 | U36: 0.8152174 | V36: 81.5217391 | W36: 89.4518781 | X36: 34
A37: 35 | B37: 2020210598 | C37: 杨晗 | D37: 工艺学硕 | E37: 98.1937500 | F37: 6.5000000 | G37: 0.0000000 | H37: 104.6937500 | I37: 0.9011394 | J37: 90.1139365 | K37: 82.5454545 | L37: 0.0000000 | M37: 0.0000000 | N37: 82.5454545 | O37: 0.9029052 | P37: 90.2905224 | Q37: 100.0000000 | R37: 0.5000000 | S37: 0.0000000 | T37: 100.5000000 | U37: 0.8192935 | V37: 81.9293478 | W37: 89.4190878 | X37: 35
A38: 36 | B38: 2020210567 | C38: 边晨曦 | D38: 工艺学硕 | E38: 98.3310345 | F38: 0.5000000 | G38: 0.0000000 | H38: 98.8310345 | I38: 0.8506767 | J38: 85.0676719 | K38: 83.1084034 | L38: 0.0000000 | M38: 0.0000000 | N38: 83.1084034 | O38: 0.9090629 | P38: 90.9062916 | Q38: 100.0000000 | R38: 7.1666667 | S38: 0.0000000 | T38: 107.1666667 | U38: 0.8736413 | V38: 87.3641304 | W38: 89.3843515 | X38: 36
A39: 37 | B39: 2020210508 | C39: 徐景芳 | D39: 工艺学硕 | E39: 98.1718750 | F39: 4.5000000 | G39: 0.0000000 | H39: 102.6718750 | I39: 0.8837363 | J39: 88.3736310 | K39: 82.8600000 | L39: 0.0000000 | M39: 0.0000000 | N39: 82.8600000 | O39: 0.9063458 | P39: 90.6345810 | Q39: 100.0000000 | R39: 0.0000000 | S39: 0.0000000 | T39: 100.0000000 | U39: 0.8152174 | V39: 81.5217391 | W39: 89.2711068 | X39: 37
A40: 38 | B40: 2020210630 | C40: 刘澄虎 | D40: 工艺学硕 | E40: 98.1281250 | F40: 0.0000000 | G40: 0.0000000 | H40: 98.1281250 | I40: 0.8446265 | J40: 84.4626506 | K40: 83.5409091 | L40: 0.0000000 | M40: 0.0000000 | N40: 83.5409091 | O40: 0.9137938 | P40: 91.3793784 | Q40: 100.0000000 | R40: 0.5000000 | S40: 0.0000000 | T40: 100.5000000 | U40: 0.8192935 | V40: 81.9293478 | W40: 89.0510298 | X40: 38
A41: 39 | B41: 2019210518 | C41: 徐荧敏 | D41: 工艺学硕 | E41: 98.1718750 | F41: 3.5000000 | G41: 0.0000000 | H41: 101.6718750 | I41: 0.8751289 | J41: 87.5128925 | K41: 82.6206522 | L41: 0.0000000 | M41: 0.0000000 | N41: 82.6206522 | O41: 0.9037278 | P41: 90.3727757 | Q41: 100.0000000 | R41: 0.0000000 | S41: 0.0000000 | T41: 100.0000000 | U41: 0.8152174 | V41: 81.5217391 | W41: 88.9156954 | X41: 39
A42: 40 | B42: 2020210587 | C42: 王超男 | D42: 工艺学硕 | E42: 98.1281250 | F42: 3.0000000 | G42: 0.0000000 | H42: 101.1281250 | I42: 0.8704487 | J42: 87.0448660 | K42: 81.6088235 | L42: 0.6250000 | M42: 0.0000000 | N42: 82.2338235 | O42: 0.8994965 | P42: 89.9496517 | Q42: 100.0000000 | R42: 0.5000000 | S42: 0.0000000 | T42: 100.5000000 | U42: 0.8192935 | V42: 81.9293478 | W42: 88.5666642 | X42: 40
A43: 41 | B43: 2020210507 | C43: 王磊 | D43: 工艺学硕 | E43: 98.2156250 | F43: 5.5000000 | G43: 0.0000000 | H43: 103.7156250 | I43: 0.8927203 | J43: 89.2720267 | K43: 81.1623529 | L43: 0.0000000 | M43: 0.0000000 | N43: 81.1623529 | O43: 0.8877765 | P43: 88.7776473 | Q43: 100.0000000 | R43: 0.5000000 | S43: 0.0000000 | T43: 100.5000000 | U43: 0.8192935 | V43: 81.9293478 | W43: 88.1916932 | X43: 41
A44: 42 | B44: 2020210512 | C44: 于佳欢 | D44: 工艺学硕 | E44: 98.1862069 | F44: 0.5000000 | G44: 0.0000000 | H44: 98.6862069 | I44: 0.8494301 | J44: 84.9430132 | K44: 81.9311111 | L44: 0.0000000 | M44: 0.0000000 | N44: 81.9311111 | O44: 0.8961854 | P44: 89.6185365 | Q44: 100.0000000 | R44: 1.1000000 | S44: 0.0000000 | T44: 101.1000000 | U44: 0.8241848 | V44: 82.4184783 | W44: 87.9634260 | X44: 42
A45: 43 | B45: 2020210628 | C45: 王远航 | D45: 工艺学硕 | E45: 98.1062500 | F45: 1.0000000 | G45: 0.0000000 | H45: 99.1062500 | I45: 0.8530456 | J45: 85.3045604 | K45: 81.7617647 | L45: 0.0000000 | M45: 0.0000000 | N45: 81.7617647 | O45: 0.8943330 | P45: 89.4333006 | Q45: 100.0000000 | R45: 0.6000000 | S45: 0.0000000 | T45: 100.6000000 | U45: 0.8201087 | V45: 82.0108696 | W45: 87.8653095 | X45: 43
A46: 44 | B46: 2020210530 | C46: 牛佳琳 | D46: 工艺学硕 | E46: 98.3310345 | F46: 5.6000000 | G46: 0.0000000 | H46: 103.9310345 | I46: 0.8945744 | J46: 89.4574380 | K46: 80.4050000 | L46: 0.0000000 | M46: 0.0000000 | N46: 80.4050000 | O46: 0.8794923 | P46: 87.9492335 | Q46: 100.0000000 | R46: 1.1000000 | S46: 0.0000000 | T46: 101.1000000 | U46: 0.8241848 | V46: 82.4184783 | W46: 87.6977989 | X46: 44
A47: 45 | B47: 2020210610 | C47: 宋红梅 | D47: 工艺学硕 | E47: 98.1281250 | F47: 0.0000000 | G47: 0.0000000 | H47: 98.1281250 | I47: 0.8446265 | J47: 84.4626506 | K47: 81.7600000 | L47: 0.0000000 | M47: 0.0000000 | N47: 81.7600000 | O47: 0.8943137 | P47: 89.4313703 | Q47: 100.0000000 | R47: 0.0000000 | S47: 0.0000000 | T47: 100.0000000 | U47: 0.8152174 | V47: 81.5217391 | W47: 87.6466633 | X47: 45
A48: 46 | B48: 2020210597 | C48: 司梦 | D48: 工艺学硕 | E48: 98.1937500 | F48: 1.5000000 | G48: 0.0000000 | H48: 99.6937500 | I48: 0.8581024 | J48: 85.8102443 | K48: 80.6600000 | L48: 0.0000000 | M48: 0.0000000 | N48: 80.6600000 | O48: 0.8822816 | P48: 88.2281596 | Q48: 100.0000000 | R48: 0.5000000 | S48: 0.0000000 | T48: 100.5000000 | U48: 0.8192935 | V48: 81.9293478 | W48: 87.1146954 | X48: 46
A49: 47 | B49: 2020210543 | C49: 翟永怡 | D49: 工艺学硕 | E49: 98.2103448 | F49: 3.5000000 | G49: 0.0000000 | H49: 101.7103448 | I49: 0.8754600 | J49: 87.5460050 | K49: 79.5787500 | L49: 0.0000000 | M49: 0.0000000 | N49: 79.5787500 | O49: 0.8704546 | P49: 87.0454582 | Q49: 100.0000000 | R49: 0.5000000 | S49: 0.0000000 | T49: 100.5000000 | U49: 0.8192935 | V49: 81.9293478 | W49: 86.6339565 | X49: 47
A50: 48 | B50: 2020210541 | C50: 罗青涵 | D50: 工艺学硕 | E50: 95.1137931 | F50: 0.0000000 | G50: 0.0000000 | H50: 95.1137931 | I50: 0.8186810 | J50: 81.8680993 | K50: 80.8833333 | L50: 0.0000000 | M50: 0.0000000 | N50: 80.8833333 | O50: 0.8847245 | P50: 88.4724479 | Q50: 100.0000000 | R50: 0.5000000 | S50: 0.0000000 | T50: 100.5000000 | U50: 0.8192935 | V50: 81.9293478 | W50: 86.4972681 | X50: 48
A51: 49 | B51: 2020210605 | C51: 车培源 | D51: 工艺学硕 | E51: 98.1281250 | F51: 3.0000000 | G51: (15.0000000) | H51: 86.1281250 | I51: 0.7413379 | J51: 74.1337892 | K51: 82.5416667 | L51: 0.0000000 | M51: 0.0000000 | N51: 82.5416667 | O51: 0.9028638 | P51: 90.2863792 | Q51: 100.0000000 | R51: 0.0000000 | S51: 0.0000000 | T51: 100.0000000 | U51: 0.8152174 | V51: 81.5217391 | W51: 86.1793972 | X51: 49
A52: 50 | B52: 2020210509 | C52: 黄志昊 | D52: 工艺学硕 | E52: 98.2586207 | F52: 4.5000000 | G52: 0.0000000 | H52: 102.7586207 | I52: 0.8844830 | J52: 88.4482963 | K52: 78.2376471 | L52: 0.0000000 | M52: 0.0000000 | N52: 78.2376471 | O52: 0.8557852 | P52: 85.5785224 | Q52: 100.0000000 | R52: 3.3333333 | S52: 0.0000000 | T52: 103.3333333 | U52: 0.8423913 | V52: 84.2391304 | W52: 86.0185380 | X52: 50
A53: 51 | B53: 2020210620 | C53: 徐东宇 | D53: 工艺学硕 | E53: 98.1062500 | F53: 0.0000000 | G53: 0.0000000 | H53: 98.1062500 | I53: 0.8444382 | J53: 84.4438220 | K53: 79.4666667 | L53: 0.0000000 | M53: 0.0000000 | N53: 79.4666667 | O53: 0.8692286 | P53: 86.9228583 | Q53: 100.0000000 | R53: 0.6000000 | S53: 0.0000000 | T53: 100.6000000 | U53: 0.8201087 | V53: 82.0108696 | W53: 85.9358522 | X53: 51
A54: 52 | B54: 2020210561 | C54: 邢皓为 | D54: 工艺学硕 | E54: 98.2344828 | F54: 0.5000000 | G54: 0.0000000 | H54: 98.7344828 | I54: 0.8498457 | J54: 84.9845661 | K54: 79.2008403 | L54: 0.0000000 | M54: 0.0000000 | N54: 79.2008403 | O54: 0.8663209 | P54: 86.6320901 | Q54: 100.0000000 | R54: 0.5000000 | S54: 0.0000000 | T54: 100.5000000 | U54: 0.8192935 | V54: 81.9293478 | W54: 85.8323110 | X54: 52
A55: 53 | B55: 2020210580 | C55: 王一迪 | D55: 工艺学硕 | E55: 98.2586207 | F55: 0.0000000 | G55: 0.0000000 | H55: 98.2586207 | I55: 0.8457497 | J55: 84.5749733 | K55: 78.7312500 | L55: 0.0000000 | M55: 0.0000000 | N55: 78.7312500 | O55: 0.8611844 | P55: 86.1184390 | Q55: 100.0000000 | R55: 0.5000000 | S55: 0.0000000 | T55: 100.5000000 | U55: 0.8192935 | V55: 81.9293478 | W55: 85.3908368 | X55: 53
A56: 54 | B56: 2020210581 | C56: 周麒麟 | D56: 工艺学硕 | E56: 98.1862069 | F56: 0.0000000 | G56: 0.0000000 | H56: 98.1862069 | I56: 0.8451264 | J56: 84.5126440 | K56: 77.9500000 | L56: 0.0000000 | M56: 0.0000000 | N56: 77.9500000 | O56: 0.8526389 | P56: 85.2638860 | Q56: 100.0000000 | R56: 0.0000000 | S56: 0.0000000 | T56: 100.0000000 | U56: 0.8152174 | V56: 81.5217391 | W56: 84.7394229 | X56: 54
A57: 55 | B57: 2020210532 | C57: 朱晓文 | D57: 工艺学硕 | E57: 98.2103448 | F57: 7.0000000 | G57: 0.0000000 | H57: 105.2103448 | I57: 0.9055859 | J57: 90.5585896 | K57: 76.1294118 | L57: 0.0000000 | M57: 0.0000000 | N57: 76.1294118 | O57: 0.8327248 | P57: 83.2724758 | Q57: 100.0000000 | R57: 1.1000000 | S57: 0.0000000 | T57: 101.1000000 | U57: 0.8241848 | V57: 82.4184783 | W57: 84.6442988 | X57: 55
A58: 56 | B58: 2020210626 | C58: 智一勃 | D58: 工艺学硕 | E58: 98.0406250 | F58: 1.5000000 | G58: 0.0000000 | H58: 99.5406250 | I58: 0.8567844 | J58: 85.6784437 | K58: 74.7842105 | L58: 0.0000000 | M58: 0.0000000 | N58: 74.7842105 | O58: 0.8180106 | P58: 81.8010571 | Q58: 100.0000000 | R58: 0.0000000 | S58: 0.0000000 | T58: 100.0000000 | U58: 0.8152174 | V58: 81.5217391 | W58: 82.5486026 | X58: 56

Sheet 工艺专硕
A1: 序号 | B1: 学号 | C1: 姓名 | D1: 方向 | E1: 德育成绩 | K1: 智育成绩 | Q1: 文体成绩 | W1: 总分 | X1: 排名
E2: 基础分 | F2: 奖励分 | G2: 惩罚分 | H2: 个人德育总分 | I2: 个人德育总分/基准 | J2: 德育总成绩 | K2: 学习成绩分 | L2: 奖励分 | M2: 惩罚分 | N2: 个人智育总分 | O2: 个人智育总分/基准 | P2: 智育总成绩 | Q2: 基本分 | R2: 奖励分 | S2: 惩罚分 | T2: 个人文体总分 | U2: 个人文体总分/基准 | V2: 文体总成绩
A3: 1 | B3: 2020215368 | C3: 于春晖 | D3: 工艺专硕 | E3: 98.1500000 | F3: 11.3000000 | G3: -.00000 | H3: 109.4500000 | I3: 0.9618279 | J3: =I3*100 -> 96.1827868 | K3: 89.0250000 | L3: 0.6057692 | M3: -.00000 | N3: =K3+L3+M3 -> 89.6307692 | O3: 1.0000000 | P3: =O3*100 -> 100.0000000 | Q3: 100.0000000 | R3: 0.5000000 | S3: -.00000 | T3: =Q3+R3 -> 100.5000000 | U3: 0.9276923 | V3: =U3*100 -> 92.7692308 | W3: =J3*0.2+P3*0.7+V3*0.1 -> 98.5134804 | X3: 1
A4: 2 | B4: 2020215374 | C4: 郭佳俊 | D4: 工艺专硕 | E4: 98.0625000 | F4: 8.0000000 | G4: -.00000 | H4: 106.0625000 | I4: 0.9320591 | J4: 93.2059098 | K4: 89.0875000 | L4: -.00000 | M4: -.00000 | N4: 89.0875000 | O4: 0.9939388 | P4: 99.3938809 | Q4: 100.0000000 | R4: 0.5000000 | S4: -.00000 | T4: 100.5000000 | U4: 0.9276923 | V4: 92.7692308 | W4: 97.4938217 | X4: 2
A5: 3 | B5: 2020215313 | C5: 孟维豪 | D5: 工艺专硕 | E5: 98.2812500 | F5: 10.5000000 | G5: -.00000 | H5: 108.7812500 | I5: 0.9559510 | J5: 95.5951008 | K5: 88.4562500 | L5: -.00000 | M5: -.00000 | N5: 88.4562500 | O5: 0.9868960 | P5: 98.6896026 | Q5: 100.0000000 | R5: 0.5000000 | S5: -.00000 | T5: 100.5000000 | U5: 0.9276923 | V5: 92.7692308 | W5: 97.4786651 | X5: 3
A6: 4 | B6: 2020215367 | C6: 路毅 | D6: 工艺专硕 | E6: 98.0406250 | F6: 4.6000000 | G6: -.00000 | H6: 102.6406250 | I6: 0.9019882 | J6: 90.1988246 | K6: 86.9161765 | L6: 2.5000000 | M6: -.00000 | N6: 89.4161765 | O6: 0.9976058 | P6: 99.7605814 | Q6: 100.0000000 | R6: 0.5000000 | S6: -.00000 | T6: 100.5000000 | U6: 0.9276923 | V6: 92.7692308 | W6: 97.1490950 | X6: 4
A7: 5 | B7: 2020215343 | C7: 陈洪派 | D7: 工艺专硕 | E7: 98.0843750 | F7: 2.5000000 | G7: -.00000 | H7: 100.5843750 | I7: 0.8839183 | J7: 88.3918273 | K7: 86.1337500 | L7: 3.3000000 | M7: -.00000 | N7: 89.4337500 | O7: 0.9978019 | P7: 99.7801880 | Q7: 100.0000000 | R7: 0.5000000 | S7: -.00000 | T7: 100.5000000 | U7: 0.9276923 | V7: 92.7692308 | W7: 96.8014201 | X7: 5
A8: 6 | B8: 2020215344 | C8: 陈丽云 | D8: 工艺专硕 | E8: 98.0843750 | F8: 6.0000000 | G8: -.00000 | H8: 104.0843750 | I8: 0.9146757 | J8: 91.4675674 | K8: 87.9262500 | L8: -.00000 | M8: -.00000 | N8: 87.9262500 | O8: 0.9809829 | P8: 98.0982878 | Q8: 100.0000000 | R8: 0.5000000 | S8: -.00000 | T8: 100.5000000 | U8: 0.9276923 | V8: 92.7692308 | W8: 96.2392381 | X8: 6
A9: 7 | B9: 2020215354 | C9: 赖加新 | D9: 工艺专硕 | E9: 95.0625000 | F9: 3.5000000 | G9: -.00000 | H9: 98.5625000 | I9: 0.8661504 | J9: 86.6150382 | K9: 88.5367647 | L9: -.00000 | M9: -.00000 | N9: 88.5367647 | O9: 0.9877943 | P9: 98.7794320 | Q9: 100.0000000 | R9: 0.5000000 | S9: -.00000 | T9: 100.5000000 | U9: 0.9276923 | V9: 92.7692308 | W9: 95.7455331 | X9: 7
A10: 8 | B10: 2020215350 | C10: 刘元昊 | D10: 工艺专硕 | E10: 98.1281250 | F10: 6.3000000 | G10: -.00000 | H10: 104.4281250 | I10: 0.9176965 | J10: 91.7696490 | K10: 87.0368421 | L10: -.00000 | M10: -.00000 | N10: 87.0368421 | O10: 0.9710599 | P10: 97.1059859 | Q10: 100.0000000 | R10: 0.5000000 | S10: -.00000 | T10: 100.5000000 | U10: 0.9276923 | V10: 92.7692308 | W10: 95.6050430 | X10: 8
A11: 9 | B11: 2020215356 | C11: 刘袁旭 | D11: 工艺专硕 | E11: 98.1937500 | F11: 15.6000000 | G11: -.00000 | H11: 113.7937500 | I11: 1.0000000 | J11: 100.0000000 | K11: 83.1538462 | L11: 1.0000000 | M11: -.00000 | N11: 84.1538462 | O11: 0.9388946 | P11: 93.8894610 | Q11: 100.0000000 | R11: 5.1666667 | S11: -.00000 | T11: 105.1666667 | U11: 0.9707692 | V11: 97.0769231 | W11: 95.4303150 | X11: 9
A12: 10 | B12: 2020215347 | C12: 姜越 | D12: 工艺专硕 | E12: 98.1281250 | F12: 3.0000000 | G12: -.00000 | H12: 101.1281250 | I12: 0.8886967 | J12: 88.8696655 | K12: 86.7526316 | L12: -.00000 | M12: -.00000 | N12: 86.7526316 | O12: 0.9678890 | P12: 96.7888955 | Q12: 100.0000000 | R12: 0.6000000 | S12: -.00000 | T12: 100.6000000 | U12: 0.9286154 | V12: 92.8615385 | W12: 94.8123138 | X12: 10
A13: 11 | B13: 2020215340 | C13: 聂胜男 | D13: 工艺专硕 | E13: 98.1718750 | F13: 5.0000000 | G13: -.00000 | H13: 103.1718750 | I13: 0.9066568 | J13: 90.6656780 | K13: 85.5949580 | L13: -.00000 | M13: -.00000 | N13: 85.5949580 | O13: 0.9549729 | P13: 95.4972926 | Q13: 100.0000000 | R13: 0.5000000 | S13: -.00000 | T13: 100.5000000 | U13: 0.9276923 | V13: 92.7692308 | W13: 94.2581635 | X13: 11
A14: 12 | B14: 2020215346 | C14: 刘浩瀚 | D14: 工艺专硕 | E14: 97.9312500 | F14: 2.0000000 | G14: -.00000 | H14: 99.9312500 | I14: 0.8781787 | J14: 87.8178722 | K14: 85.6120000 | L14: -.00000 | M14: -.00000 | N14: 85.6120000 | O14: 0.9551631 | P14: 95.5163062 | Q14: 100.0000000 | R14: 0.5000000 | S14: -.00000 | T14: 100.5000000 | U14: 0.9276923 | V14: 92.7692308 | W14: 93.7019119 | X14: 12
A15: 13 | B15: 2020215324 | C15: 徐超凡 | D15: 工艺专硕 | E15: 98.2156250 | F15: 5.8000000 | G15: -.00000 | H15: 104.0156250 | I15: 0.9140715 | J15: 91.4071511 | K15: 84.7421053 | L15: -.00000 | M15: -.00000 | N15: 84.7421053 | O15: 0.9454577 | P15: 94.5457748 | Q15: 100.0000000 | R15: -.00000 | S15: -.00000 | T15: 100.0000000 | U15: 0.9230769 | V15: 92.3076923 | W15: 93.6942418 | X15: 13
A16: 14 | B16: 2020215339 | C16: 郑彩春 | D16: 工艺专硕 | E16: 98.1937500 | F16: 5.0000000 | G16: 15.0000000 | H16: 88.1937500 | I16: 0.7750316 | J16: 77.5031581 | K16: 87.8125000 | L16: -.00000 | M16: -.00000 | N16: 87.8125000 | O16: 0.9797138 | P16: 97.9713783 | Q16: 100.0000000 | R16: 0.5000000 | S16: -.00000 | T16: 100.5000000 | U16: 0.9276923 | V16: 92.7692308 | W16: 93.3575195 | X16: 14
A17: 15 | B17: 2020215341 | C17: 田亚丽 | D17: 工艺专硕 | E17: 98.1062500 | F17: 6.5000000 | G17: -.00000 | H17: 104.6062500 | I17: 0.9192618 | J17: 91.9261822 | K17: 83.9631579 | L17: -.00000 | M17: -.00000 | N17: 83.9631579 | O17: 0.9367671 | P17: 93.6767124 | Q17: 100.0000000 | R17: 0.5000000 | S17: -.00000 | T17: 100.5000000 | U17: 0.9276923 | V17: 92.7692308 | W17: 93.2358582 | X17: 15
A18: 16 | B18: 2020215361 | C18: 徐童童 | D18: 工艺专硕 | E18: 98.0843750 | F18: 2.0000000 | G18: -.00000 | H18: 100.0843750 | I18: 0.8795244 | J18: 87.9524359 | K18: 84.8187500 | L18: -.00000 | M18: -.00000 | N18: 84.8187500 | O18: 0.9463129 | P18: 94.6312865 | Q18: 100.0000000 | R18: 0.5000000 | S18: -.00000 | T18: 100.5000000 | U18: 0.9276923 | V18: 92.7692308 | W18: 93.1093108 | X18: 16
A19: 17 | B19: 2020215360 | C19: 房畅 | D19: 工艺专硕 | E19: 98.0843750 | F19: 6.6000000 | G19: -.00000 | H19: 104.6843750 | I19: 0.9199484 | J19: 91.9948372 | K19: 83.5104167 | L19: -.00000 | M19: -.00000 | N19: 83.5104167 | O19: 0.9317159 | P19: 93.1715943 | Q19: 100.0000000 | R19: 0.5000000 | S19: -.00000 | T19: 100.5000000 | U19: 0.9276923 | V19: 92.7692308 | W19: 92.8960065 | X19: 17
A20: 18 | B20: 2020215357 | C20: 钱帅 | D20: 工艺专硕 | E20: 97.9968750 | F20: 1.5000000 | G20: -.00000 | H20: 99.4968750 | I20: 0.8743615 | J20: 87.4361509 | K20: 83.9125000 | L20: 0.5000000 | M20: -.00000 | N20: 84.4125000 | O20: 0.9417804 | P20: 94.1780381 | Q20: 100.0000000 | R20: 0.5000000 | S20: -.00000 | T20: 100.5000000 | U20: 0.9276923 | V20: 92.7692308 | W20: 92.6887799 | X20: 18
A21: 19 | B21: 2020215305 | C21: 毛丽蓉 | D21: 工艺专硕 | E21: 98.1062500 | F21: 4.5000000 | G21: -.00000 | H21: 102.6062500 | I21: 0.9016862 | J21: 90.1686165 | K21: 82.8944444 | L21: -.00000 | M21: -.00000 | N21: 82.8944444 | O21: 0.9248436 | P21: 92.4843613 | Q21: 100.0000000 | R21: 7.2666667 | S21: -.00000 | T21: 107.2666667 | U21: 0.9901538 | V21: 99.0153846 | W21: 92.6743147 | X21: 19
A22: 20 | B22: 2020215334 | C22: 韩杰 | D22: 工艺专硕 | E22: 98.2375000 | F22: 9.5000000 | G22: -.00000 | H22: 107.7375000 | I22: 0.9467787 | J22: 94.6778711 | K22: 81.3187500 | L22: -.00000 | M22: -.00000 | N22: 81.3187500 | O22: 0.9072638 | P22: 90.7263774 | Q22: 100.0000000 | R22: 0.5000000 | S22: -.00000 | T22: 100.5000000 | U22: 0.9276923 | V22: 92.7692308 | W22: 91.7209615 | X22: 20
A23: 21 | B23: 2020215335 | C23: 张鹏 | D23: 工艺专硕 | E23: 98.0625000 | F23: 1.0000000 | G23: -.00000 | H23: 99.0625000 | I23: 0.8705443 | J23: 87.0544296 | K23: 83.0375000 | L23: -.00000 | M23: -.00000 | N23: 83.0375000 | O23: 0.9264397 | P23: 92.6439667 | Q23: 100.0000000 | R23: 0.5000000 | S23: -.00000 | T23: 100.5000000 | U23: 0.9276923 | V23: 92.7692308 | W23: 91.5385857 | X23: 21
A24: 22 | B24: 2020215318 | C24: 王帅洋 | D24: 工艺专硕 | E24: 97.8656250 | F24: -.00000 | G24: -.00000 | H24: 97.8656250 | I24: 0.8600264 | J24: 86.0026363 | K24: 82.8756303 | L24: -.00000 | M24: -.00000 | N24: 82.8756303 | O24: 0.9246337 | P24: 92.4633705 | Q24: 100.0000000 | R24: 0.5000000 | S24: -.00000 | T24: 100.5000000 | U24: 0.9276923 | V24: 92.7692308 | W24: 91.2018097 | X24: 22
A25: 23 | B25: 2020215355 | C25: 吴贤 | D25: 工艺专硕 | E25: 95.1718750 | F25: 1.0000000 | G25: -.00000 | H25: 96.1718750 | I25: 0.8451420 | J25: 84.5141978 | K25: 83.1568627 | L25: 0.0366667 | M25: -.00000 | N25: 83.1935294 | O25: 0.9281805 | P25: 92.8180469 | Q25: 100.0000000 | R25: 0.5000000 | S25: -.00000 | T25: 100.5000000 | U25: 0.9276923 | V25: 92.7692308 | W25: 91.1523955 | X25: 23
A26: 24 | B26: 2020215376 | C26: 李德壮 | D26: 工艺专硕 | E26: 98.0843750 | F26: 0.5000000 | G26: -.00000 | H26: 98.5843750 | I26: 0.8663426 | J26: 86.6342615 | K26: 82.6000000 | L26: -.00000 | M26: -.00000 | N26: 82.6000000 | O26: 0.9215585 | P26: 92.1558531 | Q26: 100.0000000 | R26: 0.5000000 | S26: -.00000 | T26: 100.5000000 | U26: 0.9276923 | V26: 92.7692308 | W26: 91.1128725 | X26: 24
A27: 25 | B27: 2020215349 | C27: 刘欢 | D27: 工艺专硕 | E27: 97.9968750 | F27: -.00000 | G27: -.00000 | H27: 97.9968750 | I27: 0.8611798 | J27: 86.1179766 | K27: 82.6842105 | L27: -.00000 | M27: -.00000 | N27: 82.6842105 | O27: 0.9224981 | P27: 92.2498058 | Q27: 100.0000000 | R27: 0.5000000 | S27: -.00000 | T27: 100.5000000 | U27: 0.9276923 | V27: 92.7692308 | W27: 91.0753824 | X27: 25
A28: 26 | B28: 2019215239 | C28: 傅莉荣 | D28: 工艺专硕 | E28: 96.5953488 | F28: 0.5000000 | G28: -.00000 | H28: 97.0953488 | I28: 0.8532573 | J28: 85.3257308 | K28: 80.4137931 | L28: 2.2727272 | M28: -.00000 | N28: 82.6865203 | O28: 0.9225238 | P28: 92.2523828 | Q28: 100.0000000 | R28: -.00000 | S28: -.00000 | T28: 100.0000000 | U28: 0.9230769 | V28: 92.3076923 | W28: 90.8725833 | X28: 26
A29: 27 | B29: 2020215375 | C29: 贾玉岐 | D29: 工艺专硕 | E29: 98.0406250 | F29: 0.5000000 | G29: -.00000 | H29: 98.5406250 | I29: 0.8659581 | J29: 86.5958148 | K29: 81.3073529 | L29: -.00000 | M29: -.00000 | N29: 81.3073529 | O29: 0.9071366 | P29: 90.7136619 | Q29: 100.0000000 | R29: 8.3333333 | S29: -.00000 | T29: 108.3333333 | U29: 1.0000000 | V29: 100.0000000 | W29: 90.8187263 | X29: 27
A30: 28 | B30: 2020215309 | C30: 成洪旭 | D30: 工艺专硕 | E30: 98.0625000 | F30: -.00000 | G30: -.00000 | H30: 98.0625000 | I30: 0.8617565 | J30: 86.1756467 | K30: 81.6250000 | L30: -.00000 | M30: -.00000 | N30: 81.6250000 | O30: 0.9106806 | P30: 91.0680570 | Q30: 100.0000000 | R30: 0.5000000 | S30: -.00000 | T30: 100.5000000 | U30: 0.9276923 | V30: 92.7692308 | W30: 90.2596923 | X30: 28
A31: 29 | B31: 2020215353 | C31: 徐冉 | D31: 工程专硕 | E31: 98.5000000 | F31: 0.5000000 | G31: 0.0000000 | H31: 99.0000000 | I31: 0.8699951 | J31: 86.9995057 | K31: 81.3333333 | L31: 0.0000000 | M31: 0.0000000 | N31: 81.3333333 | O31: 0.9074265 | P31: 90.7426479 | Q31: 100.0000000 | R31: 0.0000000 | S31: 0.0000000 | T31: 100.0000000 | U31: 0.9230769 | V31: 92.3076923 | W31: 90.1505239 | X31: 29
A32: 30 | B32: 2020215371 | C32: 程明远 | D32: 工艺专硕 | E32: 98.1500000 | F32: 3.0000000 | G32: -.00000 | H32: 101.1500000 | I32: 0.8888889 | J32: 88.8888889 | K32: 79.5500000 | L32: -.00000 | M32: -.00000 | N32: =K32+L32+M32 -> 79.5500000 | O32: 0.8875300 | P32: 88.7530038 | Q32: 100.0000000 | R32: 5.2666667 | S32: -.00000 | T32: =Q32+R32 -> 105.2666667 | U32: 0.9716923 | V32: 97.1692308 | W32: 89.6218035 | X32: 30
A33: 31 | B33: 2020215304 | C33: 刘运青 | D33: 工艺专硕 | E33: 97.9968750 | F33: 0.5000000 | G33: -.00000 | H33: 98.4968750 | I33: 0.8655737 | J33: 86.5573680 | K33: 79.7941176 | L33: -.00000 | M33: -.00000 | N33: 79.7941176 | O33: 0.8902536 | P33: 89.0253630 | Q33: 100.0000000 | R33: 0.5000000 | S33: -.00000 | T33: 100.5000000 | U33: 0.9276923 | V33: 92.7692308 | W33: 88.9061508 | X33: 31
A34: 32 | B34: 2020215337 | C34: 金宇娟 | D34: 工艺专硕 | E34: 98.1937500 | F34: 6.0000000 | G34: -.00000 | H34: 104.1937500 | I34: 0.9156368 | J34: 91.5636843 | K34: 78.3197368 | L34: -.00000 | M34: -.00000 | N34: 78.3197368 | O34: 0.8738041 | P34: 87.3804136 | Q34: 100.0000000 | R34: 0.5000000 | S34: -.00000 | T34: 100.5000000 | U34: 0.9276923 | V34: 92.7692308 | W34: 88.7559494 | X34: 32
A35: 33 | B35: 2020215303 | C35: 冯伟杰 | D35: 工艺专硕 | E35: 97.9750000 | F35: 4.5000000 | G35: 15.0000000 | H35: 87.4750000 | I35: 0.7687153 | J35: 76.8715329 | K35: 81.9014706 | L35: -.00000 | M35: -.00000 | N35: 81.9014706 | O35: 0.9137651 | P35: 91.3765120 | Q35: 100.0000000 | R35: 0.5000000 | S35: -.00000 | T35: 100.5000000 | U35: 0.9276923 | V35: 92.7692308 | W35: 88.6147881 | X35: 33
A36: 34 | B36: 2020215306 | C36: 朱星臣 | D36: 工艺专硕 | E36: 98.0187500 | F36: -.00000 | G36: -.00000 | H36: 98.0187500 | I36: 0.8613720 | J36: 86.1372000 | K36: 78.6588235 | L36: -.00000 | M36: -.00000 | N36: 78.6588235 | O36: 0.8775873 | P36: 87.7587286 | Q36: 100.0000000 | R36: 0.6000000 | S36: -.00000 | T36: 100.6000000 | U36: 0.9286154 | V36: 92.8615385 | W36: 87.9447039 | X36: 34
A37: 35 | B37: 2020215338 | C37: 杨雪 | D37: 工艺专硕 | E37: 98.0625000 | F37: 3.0000000 | G37: -.00000 | H37: 101.0625000 | I37: 0.8881200 | J37: 88.8119954 | K37: 75.0078947 | L37: -.00000 | M37: -.00000 | N37: 75.0078947 | O37: 0.8368543 | P37: 83.6854301 | Q37: 100.0000000 | R37: 0.5000000 | S37: -.00000 | T37: 100.5000000 | U37: 0.9276923 | V37: 92.7692308 | W37: 85.6191232 | X37: 35

Sheet 催化学硕
A1: 序号 | B1: 学号 | C1: 姓名 | D1: 方向 | E1: 德育成绩 | K1: 智育成绩 | Q1: 文体成绩 | W1: 总分 | X1: 排名
E2: 基础分 | F2: 奖励分 | G2: 惩罚分 | H2: 个人德育总分 | I2: 个人德育总分/基准 | J2: 德育总成绩 | K2: 学习成绩分 | L2: 奖励分 | M2: 惩罚分 | N2: 个人智育总分 | O2: 个人智育总分/基准 | P2: 智育总成绩 | Q2: 基本分 | R2: 奖励分 | S2: 惩罚分 | T2: 个人文体总分 | U2: 个人文体总分/基准 | V2: 文体总成绩
A3: 1 | B3: 2020210502 | C3: 李珂欣 | D3: 催化学硕 | E3: 98.3133333 | F3: 9.6000000 | G3: 0.0000000 | H3: 107.9133333 | I3: 0.9894254 | J3: =I3*100 -> 98.9425428 | K3: 91.0736842 | L3: 0.0000000 | M3: 0.0000000 | N3: 91.0736842 | O3: 1.0000000 | P3: =O3*100 -> 100.0000000 | Q3: 100.0000000 | R3: 0.5000000 | S3: 0.0000000 | T3: 100.5000000 | U3: 1.0000000 | V3: =U3*100 -> 100.0000000 | W3: =J3*0.2+P3*0.7+V3*0.1 -> 99.7885086 | X3: 1
A4: 2 | B4: 2020210550 | C4: 崔彤 | D4: 催化学硕 | E4: 98.2433333 | F4: 0.0000000 | G4: 0.0000000 | H4: 98.2433333 | I4: 0.9007641 | J4: 90.0764059 | K4: 90.3500000 | L4: 0.0000000 | M4: 0.0000000 | N4: 90.3500000 | O4: 0.9920539 | P4: 99.2053860 | Q4: 100.0000000 | R4: 0.5000000 | S4: 0.0000000 | T4: 100.5000000 | U4: 1.0000000 | V4: 100.0000000 | W4: 97.4590514 | X4: 2
A5: 3 | B5: 2020210600 | C5: 徐明吕 | D5: 催化学硕 | E5: 98.2900000 | F5: 1.0000000 | G5: 0.0000000 | H5: 99.2900000 | I5: 0.9103606 | J5: 91.0360636 | K5: 89.7917647 | L5: 0.0000000 | M5: 0.0000000 | N5: 89.7917647 | O5: 0.9859244 | P5: 98.5924370 | Q5: 100.0000000 | R5: 0.5000000 | S5: 0.0000000 | T5: 100.5000000 | U5: 1.0000000 | V5: 100.0000000 | W5: 97.2219186 | X5: 3
A6: 4 | B6: 2020210576 | C6: 尹馨蕊 | D6: 催化学硕 | E6: 98.3600000 | F6: 6.1000000 | G6: 0.0000000 | H6: 104.4600000 | I6: 0.9577628 | J6: 95.7762836 | K6: 88.2277778 | L6: 0.0000000 | M6: 0.0000000 | N6: 88.2277778 | O6: 0.9687516 | P6: 96.8751605 | Q6: 100.0000000 | R6: 0.5000000 | S6: 0.0000000 | T6: 100.5000000 | U6: 1.0000000 | V6: 100.0000000 | W6: 96.9678691 | X6: 4
A7: 5 | B7: 2020210522 | C7: 郭伟赞 | D7: 催化学硕 | E7: 98.2900000 | F7: 0.5000000 | G7: 0.0000000 | H7: 98.7900000 | I7: 0.9057763 | J7: 90.5776284 | K7: 88.7875000 | L7: 0.0000000 | M7: 0.0000000 | N7: 88.7875000 | O7: 0.9748974 | P7: 97.4897423 | Q7: 100.0000000 | R7: 0.5000000 | S7: 0.0000000 | T7: 100.5000000 | U7: 1.0000000 | V7: 100.0000000 | W7: 96.3583453 | X7: 5
A8: 6 | B8: 2020210551 | C8: 韩秋跃 | D8: 催化学硕 | E8: 98.1733333 | F8: 0.0000000 | G8: 0.0000000 | H8: 98.1733333 | I8: 0.9001222 | J8: 90.0122249 | K8: 88.4666667 | L8: 0.0000000 | M8: 0.0000000 | N8: 88.4666667 | O8: 0.9713746 | P8: 97.1374634 | Q8: 100.0000000 | R8: 0.5000000 | S8: 0.0000000 | T8: 100.5000000 | U8: 1.0000000 | V8: 100.0000000 | W8: 95.9986694 | X8: 6
A9: 7 | B9: 2020210537 | C9: 刘启 | D9: 催化学硕 | E9: 98.2666667 | F9: 6.5000000 | G9: 0.0000000 | H9: 104.7666667 | I9: 0.9605746 | J9: 96.0574572 | K9: 85.9812500 | L9: 0.0000000 | M9: 0.0000000 | N9: 85.9812500 | O9: 0.9440845 | P9: 94.4084460 | Q9: 100.0000000 | R9: 0.0000000 | S9: 0.0000000 | T9: 100.0000000 | U9: 0.9950249 | V9: 99.5024876 | W9: 95.2476524 | X9: 7
A10: 8 | B10: 2020210523 | C10: 雷湘杰 | D10: 催化学硕 | E10: 98.2433333 | F10: 0.0000000 | G10: 0.0000000 | H10: 98.2433333 | I10: 0.9007641 | J10: 90.0764059 | K10: 87.2537500 | L10: 0.0000000 | M10: 0.0000000 | N10: 87.2537500 | O10: 0.9580567 | P10: 95.8056663 | Q10: 100.0000000 | R10: 0.0000000 | S10: 0.0000000 | T10: 100.0000000 | U10: 0.9950249 | V10: 99.5024876 | W10: 95.0294964 | X10: 8
A11: 9 | B11: 2020210599 | C11: 高诗奡 | D11: 催化学硕 | E11: 98.2900000 | F11: 6.0000000 | G11: 0.0000000 | H11: 104.2900000 | I11: 0.9562042 | J11: 95.6204156 | K11: 85.6117647 | L11: 0.0000000 | M11: 0.0000000 | N11: 85.6117647 | O11: 0.9400275 | P11: 94.0027467 | Q11: 100.0000000 | R11: 0.5000000 | S11: 0.0000000 | T11: 100.5000000 | U11: 1.0000000 | V11: 100.0000000 | W11: 94.9260058 | X11: 9
A12: 10 | B12: 2020210601 | C12: 于梦楠 | D12: 催化学硕 | E12: 98.2666667 | F12: 10.8000000 | G12: 0.0000000 | H12: 109.0666667 | I12: 1.0000000 | J12: 100.0000000 | K12: 83.3066667 | L12: 0.0000000 | M12: 0.0000000 | N12: 83.3066667 | O12: 0.9147172 | P12: 91.4717214 | Q12: 100.0000000 | R12: 0.5000000 | S12: 0.0000000 | T12: 100.5000000 | U12: 1.0000000 | V12: 100.0000000 | W12: 94.0302050 | X12: 10
A13: 11 | B13: 2020210634 | C13: 陈皓荣 | D13: 催化学硕 | E13: 98.2900000 | F13: 3.0000000 | G13: 0.0000000 | H13: 101.2900000 | I13: 0.9286980 | J13: 92.8698044 | K13: 85.1862500 | L13: 0.0000000 | M13: 0.0000000 | N13: 85.1862500 | O13: 0.9353553 | P13: 93.5355265 | Q13: 100.0000000 | R13: 0.0000000 | S13: 0.0000000 | T13: 100.0000000 | U13: 0.9950249 | V13: 99.5024876 | W13: 93.9990782 | X13: 11
A14: 12 | B14: 2020210513 | C14: 蔡润 | D14: 催化学硕 | E14: 98.1033333 | F14: 0.0000000 | G14: 0.0000000 | H14: 98.1033333 | I14: 0.8994804 | J14: 89.9480440 | K14: 85.8800000 | L14: 0.0000000 | M14: 0.0000000 | N14: 85.8800000 | O14: 0.9429727 | P14: 94.2972723 | Q14: 100.0000000 | R14: 0.5000000 | S14: 0.0000000 | T14: 100.5000000 | U14: 1.0000000 | V14: 100.0000000 | W14: 93.9976994 | X14: 12
A15: 13 | B15: 2020210552 | C15: 仝昌颖 | D15: 催化学硕 | E15: 98.1033333 | F15: 0.0000000 | G15: 0.0000000 | H15: 98.1033333 | I15: 0.8994804 | J15: 89.9480440 | K15: 85.5411765 | L15: 0.0000000 | M15: 0.0000000 | N15: 85.5411765 | O15: 0.9392524 | P15: 93.9252400 | Q15: 100.0000000 | R15: 0.5000000 | S15: 0.0000000 | T15: 100.5000000 | U15: 1.0000000 | V15: 100.0000000 | W15: 93.7372768 | X15: 13
A16: 14 | B16: 2020210517 | C16: 郭培嘉 | D16: 催化学硕 | E16: 98.1500000 | F16: 6.0000000 | G16: 0.0000000 | H16: 104.1500000 | I16: 0.9549205 | J16: 95.4920538 | K16: 83.8550000 | L16: 0.0000000 | M16: 0.0000000 | N16: 83.8550000 | O16: 0.9207380 | P16: 92.0737980 | Q16: 100.0000000 | R16: 0.5000000 | S16: 0.0000000 | T16: 100.5000000 | U16: 1.0000000 | V16: 100.0000000 | W16: 93.5500693 | X16: 14
A17: 15 | B17: 2020210571 | C17: 陈尧 | D17: 催化学硕 | E17: 98.2200000 | F17: 0.0000000 | G17: 0.0000000 | H17: 98.2200000 | I17: 0.9005501 | J17: 90.0550122 | K17: 84.4514706 | L17: 0.0000000 | M17: 0.0000000 | N17: 84.4514706 | O17: 0.9272873 | P17: 92.7287298 | Q17: 100.0000000 | R17: 0.5000000 | S17: 0.0000000 | T17: 100.5000000 | U17: 1.0000000 | V17: 100.0000000 | W17: 92.9211133 | X17: 15
A18: 16 | B18: 2020210518 | C18: 张伟鹏 | D18: 催化学硕 | E18: 98.2900000 | F18: 2.0000000 | G18: 0.0000000 | H18: 100.2900000 | I18: 0.9195293 | J18: 91.9529340 | K18: 83.7205882 | L18: 0.0000000 | M18: 0.0000000 | N18: 83.7205882 | O18: 0.9192621 | P18: 91.9262122 | Q18: 100.0000000 | R18: 0.5000000 | S18: 0.0000000 | T18: 100.5000000 | U18: 1.0000000 | V18: 100.0000000 | W18: 92.7389354 | X18: 16
A19: 17 | B19: 2020210575 | C19: 王昱人 | D19: 催化学硕 | E19: 98.2433333 | F19: 0.5000000 | G19: 0.0000000 | H19: 98.7433333 | I19: 0.9053484 | J19: 90.5348411 | K19: 83.7611111 | L19: 0.0000000 | M19: 0.0000000 | N19: 83.7611111 | O19: 0.9197071 | P19: 91.9707068 | Q19: 100.0000000 | R19: 0.5000000 | S19: 0.0000000 | T19: 100.5000000 | U19: 1.0000000 | V19: 100.0000000 | W19: 92.4864630 | X19: 17
A20: 18 | B20: 2020210538 | C20: 熊东 | D20: 催化学硕 | E20: 98.2666667 | F20: 0.0000000 | G20: 0.0000000 | H20: 98.2666667 | I20: 0.9009780 | J20: 90.0977995 | K20: 83.6212500 | L20: 0.0000000 | M20: 0.0000000 | N20: 83.6212500 | O20: 0.9181714 | P20: 91.8171377 | Q20: 100.0000000 | R20: 0.0000000 | S20: 0.0000000 | T20: 100.0000000 | U20: 0.9950249 | V20: 99.5024876 | W20: 92.2418050 | X20: 18
A21: 19 | B21: 2020210607 | C21: 叶海波 | D21: 催化学硕 | E21: 98.1733333 | F21: 4.5000000 | G21: 0.0000000 | H21: 102.6733333 | I21: 0.9413814 | J21: 94.1381418 | K21: 81.8950000 | L21: 0.0000000 | M21: 0.0000000 | N21: 81.8950000 | O21: 0.8992169 | P21: 89.9216944 | Q21: 100.0000000 | R21: 0.5000000 | S21: 0.0000000 | T21: 100.5000000 | U21: 1.0000000 | V21: 100.0000000 | W21: 91.7728144 | X21: 19
A22: 20 | B22: 2020210536 | C22: 张炳跃 | D22: 催化学硕 | E22: 98.2900000 | F22: 4.0000000 | G22: 0.0000000 | H22: 102.2900000 | I22: 0.9378667 | J22: 93.7866748 | K22: 82.0141176 | L22: 0.0000000 | M22: 0.0000000 | N22: 82.0141176 | O22: 0.9005249 | P22: 90.0524870 | Q22: 100.0000000 | R22: 0.0000000 | S22: 0.0000000 | T22: 100.0000000 | U22: 0.9950249 | V22: 99.5024876 | W22: 91.7443246 | X22: 20
A23: 21 | B23: 2020210527 | C23: 刘波 | D23: 催化学硕 | E23: 98.2666667 | F23: 7.6000000 | G23: 0.0000000 | H23: 105.8666667 | I23: 0.9706601 | J23: 97.0660147 | K23: 80.8823529 | L23: 0.0000000 | M23: 0.0000000 | N23: 80.8823529 | O23: 0.8880980 | P23: 88.8097958 | Q23: 100.0000000 | R23: 0.5000000 | S23: 0.0000000 | T23: 100.5000000 | U23: 1.0000000 | V23: 100.0000000 | W23: 91.5800600 | X23: 21
A24: 22 | B24: 2020210615 | C24: 苏瑞 | D24: 催化学硕 | E24: 98.2433333 | F24: 7.5000000 | G24: 0.0000000 | H24: 105.7433333 | I24: 0.9695293 | J24: 96.9529340 | K24: 80.1625000 | L24: 0.0000000 | M24: 0.0000000 | N24: 80.1625000 | O24: 0.8801939 | P24: 88.0193886 | Q24: 100.0000000 | R24: 0.5000000 | S24: 0.0000000 | T24: 100.5000000 | U24: 1.0000000 | V24: 100.0000000 | W24: 91.0041588 | X24: 22
A25: 23 | B25: 2020210514 | C25: 叶颖 | D25: 催化学硕 | E25: 98.1500000 | F25: 0.5000000 | G25: 0.0000000 | H25: 98.6500000 | I25: 0.9044927 | J25: 90.4492665 | K25: 80.6870588 | L25: 0.0000000 | M25: 0.0000000 | N25: 80.6870588 | O25: 0.8859536 | P25: 88.5953605 | Q25: 100.0000000 | R25: 0.5000000 | S25: 0.0000000 | T25: 100.5000000 | U25: 1.0000000 | V25: 100.0000000 | W25: 90.1066056 | X25: 23
A26: 24 | B26: 2020210553 | C26: 张硕 | D26: 催化学硕 | E26: 98.1266667 | F26: 0.0000000 | G26: 0.0000000 | H26: 98.1266667 | I26: 0.8996944 | J26: 89.9694377 | K26: 80.2364706 | L26: 0.0000000 | M26: 0.0000000 | N26: 80.2364706 | O26: 0.8810061 | P26: 88.1006092 | Q26: 100.0000000 | R26: 0.5000000 | S26: 0.0000000 | T26: 100.5000000 | U26: 1.0000000 | V26: 100.0000000 | W26: 89.6643140 | X26: 24
A27: 25 | B27: 2020210549 | C27: 赵莹莹 | D27: 催化学硕 | E27: 98.1966667 | F27: 4.0000000 | G27: 0.0000000 | H27: 102.1966667 | I27: 0.9370110 | J27: 93.7011002 | K27: 78.7926471 | L27: 0.0000000 | M27: 0.0000000 | N27: 78.7926471 | O27: 0.8651527 | P27: 86.5152736 | Q27: 100.0000000 | R27: 0.5000000 | S27: 0.0000000 | T27: 100.5000000 | U27: 1.0000000 | V27: 100.0000000 | W27: 89.3009116 | X27: 25
A28: 26 | B28: 2020210545 | C28: 王聃琦 | D28: 催化学硕 | E28: 98.1500000 | F28: 4.5000000 | G28: 0.0000000 | H28: 102.6500000 | I28: 0.9411675 | J28: 94.1167482 | K28: 78.2576471 | L28: 0.0000000 | M28: 0.0000000 | N28: 78.2576471 | O28: 0.8592784 | P28: 85.9278372 | Q28: 100.0000000 | R28: 0.0000000 | S28: 0.0000000 | T28: 100.0000000 | U28: 0.9950249 | V28: 99.5024876 | W28: 88.9230844 | X28: 26
A29: 27 | B29: 2020210535 | C29: 李双双 | D29: 催化学硕 | E29: 98.1966667 | F29: 0.0000000 | G29: 0.0000000 | H29: 98.1966667 | I29: 0.9003362 | J29: 90.0336186 | K29: 78.4187500 | L29: 0.0000000 | M29: 0.0000000 | N29: 78.4187500 | O29: 0.8610473 | P29: 86.1047301 | Q29: 100.0000000 | R29: 0.0000000 | S29: 0.0000000 | T29: 100.0000000 | U29: 0.9950249 | V29: 99.5024876 | W29: 88.2302836 | X29: 27
A30: 28 | B30: 2020210548 | C30: 赵文涛 | D30: 催化学硕 | E30: 98.1966667 | F30: 4.5000000 | G30: 0.0000000 | H30: 102.6966667 | I30: 0.9415954 | J30: 94.1595355 | K30: 75.5000000 | L30: 0.0000000 | M30: 0.0000000 | N30: 75.5000000 | O30: 0.8289991 | P30: 82.8999075 | Q30: 100.0000000 | R30: 0.0000000 | S30: 0.0000000 | T30: 100.0000000 | U30: 0.9950249 | V30: 99.5024876 | W30: 86.8120911 | X30: 28
A31: 29 | B31: 2020210608 | C31: 赵子祺 | D31: 催化学硕 | E31: 98.1966667 | F31: 0.5000000 | G31: 0.0000000 | H31: 98.6966667 | I31: 0.9049205 | J31: 90.4920538 | K31: 75.5700000 | L31: 0.0000000 | M31: 0.0000000 | N31: 75.5700000 | O31: 0.8297677 | P31: 82.9767684 | Q31: 100.0000000 | R31: 0.5000000 | S31: 0.0000000 | T31: 100.5000000 | U31: 1.0000000 | V31: 100.0000000 | W31: 86.1821486 | X31: 29

Sheet 催化专硕
A1: 序号 | B1: 学号 | C1: 姓名 | D1: 方向 | E1: 德育成绩 | K1: 智育成绩 | Q1: 文体成绩 | W1: 总分 | X1: 排名
E2: 基础分 | F2: 奖励分 | G2: 惩罚分 | H2: 个人德育总分 | I2: 个人德育总分/基准 | J2: 德育总成绩 | K2: 学习成绩分 | L2: 奖励分 | M2: 惩罚分 | N2: 个人智育总分 | O2: 个人智育总分/基准 | P2: 智育总成绩 | Q2: 基本分 | R2: 奖励分 | S2: 惩罚分 | T2: 个人文体总分 | U2: 个人文体总分/基准 | V2: 文体总成绩
A3: 1 | B3: 2020215363 | C3: 王浩 | D3: 催化专硕 | E3: 98.5 | F3: 8.1 | G3: 0 | H3: =E3+F3+G3 -> 106.6000000 | I3: =H3/$H$3 -> 1.0000000 | J3: =I3*100 -> 100.0000000 | K3: 85.1791667 | L3: 0 | M3: 0 | N3: =K3+L3+M3 -> 85.1791667 | O3: 0.9947206 | P3: =O3*100 -> 99.4720580 | Q3: 100 | R3: 7.5 | S3: 0 | T3: =Q3+R3+S3 -> 107.5000000 | U3: 1.0000000 | V3: =U3*100 -> 100.0000000 | W3: =J3*0.2+P3*0.7+V3*0.1 -> 99.6304406 | X3: 1
A4: 2 | B4: 2020215365 | C4: 王博 | D4: 催化专硕 | E4: 98.5 | F4: 11.1 | G4: 0 | H4: 109.6000000 | I4: 1.0281426 | J4: 102.8142589 | K4: 85.2529412 | L4: 0 | M4: 0 | N4: 85.2529412 | O4: 0.9955821 | P4: 99.5582117 | Q4: 100 | R4: 0.5 | S4: 0 | T4: 100.5000000 | U4: 0.9348837 | V4: 93.4883721 | W4: 99.6024372 | X4: 2
A5: 3 | B5: 2020215342 | C5: 高卿伟 | D5: 催化专硕 | E5: 98.5 | F5: 3.5 | G5: 0 | H5: 102.0000000 | I5: 0.9568480 | J5: 95.6848030 | K5: 85.6312500 | L5: 0 | M5: 0 | N5: 85.6312500 | O5: 1.0000000 | P5: 100.0000000 | Q5: 100 | R5: 0.5 | S5: 0 | T5: 100.5000000 | U5: 0.9348837 | V5: 93.4883721 | W5: 98.4857978 | X5: 3
A6: 4 | B6: 2020215369 | C6: 刘唐 | D6: 催化专硕 | E6: 98.5 | F6: 0.5 | G6: 0 | H6: 99.0000000 | I6: 0.9287054 | J6: 92.8705441 | K6: 85.2725490 | L6: 0 | M6: 0 | N6: 85.2725490 | O6: 0.9958111 | P6: 99.5811097 | Q6: 100 | R6: 6.666666667 | S6: 0 | T6: 106.6666667 | U6: 0.9922481 | V6: 99.2248062 | W6: 98.2033662 | X6: 4
A7: 5 | B7: 2020215312 | C7: 张静 | D7: 催化专硕 | E7: 98.5 | F7: 5 | G7: 0 | H7: 103.5000000 | I7: 0.9709193 | J7: 97.0919325 | K7: 84.3250000 | L7: 0 | M7: 0 | N7: 84.3250000 | O7: 0.9847456 | P7: 98.4745639 | Q7: 100 | R7: 0.5 | S7: 0 | T7: 100.5000000 | U7: 0.9348837 | V7: 93.4883721 | W7: 97.6994184 | X7: 5
A8: 6 | B8: 2020215373 | C8: 张佳爱 | D8: 催化专硕 | E8: 98.5 | F8: 3.5 | G8: 0 | H8: 102.0000000 | I8: 0.9568480 | J8: 95.6848030 | K8: 83.8729167 | L8: 0 | M8: 0 | N8: 83.8729167 | O8: 0.9794662 | P8: 97.9466219 | Q8: 100 | R8: 0.5 | S8: 0 | T8: 100.5000000 | U8: 0.9348837 | V8: 93.4883721 | W8: 97.0484331 | X8: 6
A9: 7 | B9: 2020215329 | C9: 耿若然 | D9: 催化专硕 | E9: 98.5 | F9: 0 | G9: 0 | H9: 98.5000000 | I9: 0.9240150 | J9: 92.4015009 | K9: 84.1187500 | L9: 0 | M9: 0 | N9: 84.1187500 | O9: 0.9823371 | P9: 98.2337056 | Q9: 100 | R9: 0.5 | S9: 0 | T9: 100.5000000 | U9: 0.9348837 | V9: 93.4883721 | W9: 96.5927313 | X9: 7
A10: 8 | B10: 2020215372 | C10: 司盈利 | D10: 催化专硕 | E10: 98.5 | F10: 7.5 | G10: 0 | H10: 106.0000000 | I10: 0.9943715 | J10: 99.4371482 | K10: 81.0250000 | L10: 0 | M10: 0 | N10: 81.0250000 | O10: 0.9462083 | P10: 94.6208306 | Q10: 100 | R10: 0.5 | S10: 0 | T10: 100.5000000 | U10: 0.9348837 | V10: 93.4883721 | W10: 95.4708483 | X10: 8
A11: 9 | B11: 2020215362 | C11: 陈金洋 | D11: 催化专硕 | E11: 98.5 | F11: 4 | G11: 0 | H11: 102.5000000 | I11: 0.9615385 | J11: 96.1538462 | K11: 81.8270833 | L11: 0 | M11: 0 | N11: 81.8270833 | O11: 0.9555750 | P11: 95.5575019 | Q11: 100 | R11: 0 | S11: 0 | T11: 100.0000000 | U11: 0.9302326 | V11: 93.0232558 | W11: 95.4233461 | X11: 9
A12: 10 | B12: 2020215314 | C12: 张瑞鹏 | D12: 催化专硕 | E12: 98.5 | F12: 2 | G12: 0 | H12: 100.5000000 | I12: 0.9427767 | J12: 94.2776735 | K12: 82.1277778 | L12: 0 | M12: 0 | N12: 82.1277778 | O12: 0.9590865 | P12: 95.9086522 | Q12: 100 | R12: 0.5 | S12: 0 | T12: 100.5000000 | U12: 0.9348837 | V12: 93.4883721 | W12: 95.3404285 | X12: 10
A13: 11 | B13: 2020215326 | C13: 郝政浩 | D13: 催化专硕 | E13: 98.5 | F13: 12 | G13: 0 | H13: 110.5000000 | I13: 1.0365854 | J13: 103.6585366 | K13: 79.4568627 | L13: 0 | M13: 0 | N13: 79.4568627 | O13: 0.9278956 | P13: 92.7895631 | Q13: 100 | R13: 0.5 | S13: 0 | T13: 100.5000000 | U13: 0.9348837 | V13: 93.4883721 | W13: 95.0332387 | X13: 11
A14: 12 | B14: 2020215328 | C14: 崔晓东 | D14: 催化专硕 | E14: 98.5 | F14: 8.5 | G14: 0 | H14: 107.0000000 | I14: 1.0037523 | J14: 100.3752345 | K14: 80.2309524 | L14: 0 | M14: 0 | N14: 80.2309524 | O14: 0.9369354 | P14: 93.6935434 | Q14: 100 | R14: 0.5 | S14: 0 | T14: 100.5000000 | U14: 0.9348837 | V14: 93.4883721 | W14: 95.0093645 | X14: 12
A15: 13 | B15: 2020215345 | C15: 邵嘉欣 | D15: 催化专硕 | E15: 98.5 | F15: 0 | G15: 0 | H15: 98.5000000 | I15: 0.9240150 | J15: 92.4015009 | K15: 81.1411765 | L15: 0 | M15: 0 | N15: 81.1411765 | O15: 0.9475650 | P15: 94.7565012 | Q15: 100 | R15: 0.5 | S15: 0 | T15: 100.5000000 | U15: 0.9348837 | V15: 93.4883721 | W15: 94.1586883 | X15: 13
A16: 14 | B16: 2020215307 | C16: 杜建芳 | D16: 催化专硕 | E16: 98.5 | F16: 2 | G16: 0 | H16: 100.5000000 | I16: 0.9427767 | J16: 94.2776735 | K16: 78.8500000 | L16: 0 | M16: 0 | N16: 78.8500000 | O16: 0.9208087 | P16: 92.0808700 | Q16: 100 | R16: 7.166666667 | S16: 0 | T16: 107.1666667 | U16: 0.9968992 | V16: 99.6899225 | W16: 93.2811360 | X16: 14
A17: 15 | B17: 2020215322 | C17: 沈杨 | D17: 催化专硕 | E17: 98.5 | F17: 3 | G17: 0 | H17: 101.5000000 | I17: 0.9521576 | J17: 95.2157598 | K17: 78.5645833 | L17: 0 | M17: 0 | N17: 78.5645833 | O17: 0.9174756 | P17: 91.7475610 | Q17: 100 | R17: 0 | S17: 0 | T17: 100.0000000 | U17: 0.9302326 | V17: 93.0232558 | W17: 92.5687703 | X17: 15
A18: 16 | B18: 2020215325 | C18: 陈子康 | D18: 催化专硕 | E18: 98.5 | F18: 2 | G18: 0 | H18: 100.5000000 | I18: 0.9427767 | J18: 94.2776735 | K18: 78.0588235 | L18: 0 | M18: 0 | N18: 78.0588235 | O18: 0.9115694 | P18: 91.1569357 | Q18: 100 | R18: 0.5 | S18: 0 | T18: 100.5000000 | U18: 0.9348837 | V18: 93.4883721 | W18: 92.0142269 | X18: 16
A19: 17 | B19: 2020215327 | C19: 闫敬如 | D19: 催化专硕 | E19: 98.5 | F19: 3 | G19: 0 | H19: 101.5000000 | I19: 0.9521576 | J19: 95.2157598 | K19: 73.5078431 | L19: 0 | M19: 0 | N19: 73.5078431 | O19: 0.8584231 | P19: 85.8423101 | Q19: 100 | R19: 0.5 | S19: 0 | T19: 100.5000000 | U19: 0.9348837 | V19: 93.4883721 | W19: 88.4816062 | X19: 17

Sheet 工程学硕
A1: 序号 | B1: 学号 | C1: 姓名 | D1: 方向 | E1: 德育成绩 | K1: 智育成绩 | Q1: 文体成绩 | W1: 总分 | X1: 排名
E2: 基础分 | F2: 奖励分 | G2: 惩罚分 | H2: 个人德育总分 | I2: 个人德育总分/基准 | J2: 德育总成绩 | K2: 学习成绩分 | L2: 奖励分 | M2: 惩罚分 | N2: 个人智育总分 | O2: 个人智育总分/基准 | P2: 智育总成绩 | Q2: 基本分 | R2: 奖励分 | S2: 惩罚分 | T2: 个人文体总分 | U2: 个人文体总分/基准 | V2: 文体总成绩
A3: 1 | B3: 2020210594 | C3: 石韶霏 | D3: 工程学硕 | E3: 98.1694444 | F3: 7.8000000 | G3: 0.0000000 | H3: =E3+F3+G3 -> 105.9694444 | I3: 0.9585658 | J3: =I3*100 -> 95.8565757 | K3: 83.6500000 | L3: 27.0000000 | M3: 0.0000000 | N3: =K3+L3+M3 -> 110.6500000 | O3: 1.0000000 | P3: =O3*100 -> 100.0000000 | Q3: 100.0000000 | R3: 0.5000000 | S3: 0.0000000 | T3: =Q3+R3+S3 -> 100.5000000 | U3: 0.9348837 | V3: =U3*100 -> 93.4883721 | W3: =J3*0.2+P3*0.7+V3*0.1 -> 98.5201524 | X3: 1
A4: 2 | B4: 2020210501 | C4: 何诗萍 | D4: 工程学硕 | E4: 98.2083333 | F4: 8.5000000 | G4: 0.0000000 | H4: 106.7083333 | I4: 0.9652495 | J4: 96.5249510 | K4: 90.8571429 | L4: 1.0071429 | M4: 0.0000000 | N4: 91.8642857 | O4: 0.8302240 | P4: 83.0224001 | Q4: 100.0000000 | R4: 0.5000000 | S4: 0.0000000 | T4: 100.5000000 | U4: 0.9348837 | V4: 93.4883721 | W4: 86.7695075 | X4: 2
A5: 3 | B5: 2020210585 | C5: 邓名君 | D5: 工程学硕 | E5: 98.0722222 | F5: 4.5000000 | G5: 0.0000000 | H5: 102.5722222 | I5: 0.9278356 | J5: 92.7835570 | K5: 90.2277778 | L5: 1.2500000 | M5: 0.0000000 | N5: 91.4777778 | O5: 0.8267309 | P5: 82.6730933 | Q5: 100.0000000 | R5: 0.5000000 | S5: 0.0000000 | T5: 100.5000000 | U5: 0.9348837 | V5: 93.4883721 | W5: 85.7767139 | X5: 3
A6: 4 | B6: 2020210504 | C6: 柴莉桠 | D6: 工程学硕 | E6: 98.1888889 | F6: 0.5000000 | G6: 0.0000000 | H6: 98.6888889 | I6: 0.8927082 | J6: 89.2708176 | K6: 90.7000000 | L6: 0.0000000 | M6: 0.0000000 | N6: 90.7000000 | O6: 0.8197018 | P6: 81.9701762 | Q6: 100.0000000 | R6: 0.5000000 | S6: 0.0000000 | T6: 100.5000000 | U6: 0.9348837 | V6: 93.4883721 | W6: 84.5821241 | X6: 4
A7: 5 | B7: 2020210539 | C7: 胡晓洁 | D7: 工程学硕 | E7: 98.1694444 | F7: 4.0000000 | G7: 0.0000000 | H7: 102.1694444 | I7: 0.9241922 | J7: 92.4192170 | K7: 86.9676471 | L7: 2.1666667 | M7: 0.0000000 | N7: 89.1343137 | O7: 0.8055519 | P7: 80.5551864 | Q7: 100.0000000 | R7: 3.0000000 | S7: 0.0000000 | T7: 103.0000000 | U7: 0.9581395 | V7: 95.8139535 | W7: 84.4538692 | X7: 5
A8: 6 | B8: 2020210516 | C8: 赵金 | D8: 工程学硕 | E8: 98.2277778 | F8: 2.0000000 | G8: 0.0000000 | H8: 100.2277778 | I8: 0.9066285 | J8: 90.6628474 | K8: 90.0647059 | L8: 0.0000000 | M8: 0.0000000 | N8: 90.0647059 | O8: 0.8139603 | P8: 81.3960288 | Q8: 100.0000000 | R8: 0.0000000 | S8: 0.0000000 | T8: 100.0000000 | U8: 0.9302326 | V8: 93.0232558 | W8: 84.4121152 | X8: 6
A9: 9 | B9: 2020210515 | C9: 霍猛 | D9: 工程学硕 | E9: 98.2472222 | F9: 7.5000000 | G9: 0.0000000 | H9: 105.7472222 | I9: 0.9565556 | J9: 95.6555606 | K9: 85.5117647 | L9: 2.5000000 | M9: 0.0000000 | N9: 88.0117647 | O9: 0.7954068 | P9: 79.5406821 | Q9: 100.0000000 | R9: 0.5000000 | S9: 0.0000000 | T9: 100.5000000 | U9: 0.9348837 | V9: 93.4883721 | W9: 84.1584268 | X9: 7
A10: 7 | B10: 2020210563 | C10: 马郡男 | D10: 工程学硕 | E10: 98.0527778 | F10: 5.1000000 | G10: 0.0000000 | H10: 103.1527778 | I10: 0.9330871 | J10: 93.3087090 | K10: 88.5166667 | L10: 0.0000000 | M10: 0.0000000 | N10: 88.5166667 | O10: 0.7999699 | P10: 79.9969875 | Q10: 100.0000000 | R10: 0.5000000 | S10: 0.0000000 | T10: 100.5000000 | U10: 0.9348837 | V10: 93.4883721 | W10: 84.0084703 | X10: 8
A11: 8 | B11: 2020210528 | C11: 刘宁辉 | D11: 工程学硕 | E11: 98.2083333 | F11: 0.5000000 | G11: 0.0000000 | H11: 98.7083333 | I11: 0.8928841 | J11: 89.2884065 | K11: 89.1777778 | L11: 0.0000000 | M11: 0.0000000 | N11: 89.1777778 | O11: 0.8059447 | P11: 80.5944670 | Q11: 100.0000000 | R11: 0.5000000 | S11: 0.0000000 | T11: 100.5000000 | U11: 0.9348837 | V11: 93.4883721 | W11: 83.6226454 | X11: 9
A12: 10 | B12: 2020210505 | C12: 汤涵 | D12: 工程学硕 | E12: 98.1888889 | F12: 4.6000000 | G12: 0.0000000 | H12: 102.7888889 | I12: 0.9297955 | J12: 92.9795467 | K12: 87.3333333 | L12: 0.0000000 | M12: 0.0000000 | N12: 87.3333333 | O12: 0.7892755 | P12: 78.9275493 | Q12: 100.0000000 | R12: 0.0750000 | S12: 0.0000000 | T12: 100.0750000 | U12: 0.9309302 | V12: 93.0930233 | W12: 83.1544962 | X12: 10
A13: 11 | B13: 2020210595 | C13: 王鑫 | D13: 工程学硕 | E13: 98.1111111 | F13: 7.0000000 | G13: 0.0000000 | H13: 105.1111111 | I13: 0.9508015 | J13: 95.0801548 | K13: 86.2250000 | L13: 0.0000000 | M13: 0.0000000 | N13: 86.2250000 | O13: 0.7792589 | P13: 77.9258925 | Q13: 100.0000000 | R13: 0.0000000 | S13: 0.0000000 | T13: 100.0000000 | U13: 0.9302326 | V13: 93.0232558 | W13: 82.8664813 | X13: 11
A14: 12 | B14: 2020210632 | C14: 刘月鹏 | D14: 工程学硕 | E14: 98.0527778 | F14: 5.0000000 | G14: 0.0000000 | H14: 103.0527778 | I14: 0.9321825 | J14: 93.2182522 | K14: 86.6952941 | L14: 0.0000000 | M14: 0.0000000 | N14: 86.6952941 | O14: 0.7835092 | P14: 78.3509210 | Q14: 100.0000000 | R14: 0.5000000 | S14: 0.0000000 | T14: 100.5000000 | U14: 0.9348837 | V14: 93.4883721 | W14: 82.8381324 | X14: 12
A15: 13 | B15: 2020210554 | C15: 李建 | D15: 工程学硕 | E15: 98.2277778 | F15: 7.1000000 | G15: 0.0000000 | H15: 105.3277778 | I15: 0.9527614 | J15: 95.2761445 | K15: 85.5625000 | L15: 0.5000000 | M15: 0.0000000 | N15: 86.0625000 | O15: 0.7777903 | P15: 77.7790330 | Q15: 100.0000000 | R15: 0.0000000 | S15: 0.0000000 | T15: 100.0000000 | U15: 0.9302326 | V15: 93.0232558 | W15: 82.8028776 | X15: 13
A16: 14 | B16: 2020210582 | C16: 李向明 | D16: 工程学硕 | E16: 98.1111111 | F16: 4.6000000 | G16: 0.0000000 | H16: 102.7111111 | I16: 0.9290919 | J16: 92.9091914 | K16: 86.4650000 | L16: 0.0000000 | M16: 0.0000000 | N16: 86.4650000 | O16: 0.7814279 | P16: 78.1427926 | Q16: 100.0000000 | R16: 0.5000000 | S16: 0.0000000 | T16: 100.5000000 | U16: 0.9348837 | V16: 93.4883721 | W16: 82.6306303 | X16: 14
A17: 15 | B17: 2020210556 | C17: 孟诗涵 | D17: 工程学硕 | E17: 98.1111111 | F17: 4.5000000 | G17: 0.0000000 | H17: 102.6111111 | I17: 0.9281873 | J17: 92.8187346 | K17: 86.5187500 | L17: 0.0000000 | M17: 0.0000000 | N17: 86.5187500 | O17: 0.7819137 | P17: 78.1913692 | Q17: 100.0000000 | R17: 0.0000000 | S17: 0.0000000 | T17: 100.0000000 | U17: 0.9302326 | V17: 93.0232558 | W17: 82.6000309 | X17: 15
A18: 16 | B18: 2020210583 | C18: 赵航 | D18: 工程学硕 | E18: 98.2277778 | F18: 3.5000000 | G18: 0.0000000 | H18: 101.7277778 | I18: 0.9201970 | J18: 92.0196995 | K18: 86.6500000 | L18: 0.0000000 | M18: 0.0000000 | N18: 86.6500000 | O18: 0.7830999 | P18: 78.3099864 | Q18: 100.0000000 | R18: 0.5000000 | S18: 0.0000000 | T18: 100.5000000 | U18: 0.9348837 | V18: 93.4883721 | W18: 82.5697676 | X18: 16
A19: 17 | B19: 2020210540 | C19: 袁俊涛 | D19: 工程学硕 | E19: 98.1888889 | F19: 3.0000000 | G19: 0.0000000 | H19: 101.1888889 | I19: 0.9153224 | J19: 91.5322378 | K19: 86.7676471 | L19: 0.0000000 | M19: 0.0000000 | N19: 86.7676471 | O19: 0.7841631 | P19: 78.4163100 | Q19: 100.0000000 | R19: 0.5000000 | S19: 0.0000000 | T19: 100.5000000 | U19: 0.9348837 | V19: 93.4883721 | W19: 82.5467018 | X19: 17
A20: 18 | B20: 2020210503 | C20: 蔡进 | D20: 工程学硕 | E20: 98.0916667 | F20: 0.0000000 | G20: 0.0000000 | H20: 98.0916667 | I20: 0.8873059 | J20: 88.7305895 | K20: 87.3333333 | L20: 0.0000000 | M20: 0.0000000 | N20: 87.3333333 | O20: 0.7892755 | P20: 78.9275493 | Q20: 100.0000000 | R20: 0.0000000 | S20: 0.0000000 | T20: 100.0000000 | U20: 0.9302326 | V20: 93.0232558 | W20: 82.2977280 | X20: 18
A21: 19 | B21: 2020210562 | C21: 金伟星 | D21: 工程学硕 | E21: 98.1694444 | F21: 4.0000000 | G21: 0.0000000 | H21: 102.1694444 | I21: 0.9241922 | J21: 92.4192170 | K21: 85.1333333 | L21: 0.0000000 | M21: 0.0000000 | N21: 85.1333333 | O21: 0.7693930 | P21: 76.9392981 | Q21: 100.0000000 | R21: 3.5000000 | S21: 0.0000000 | T21: 103.5000000 | U21: 0.9627907 | V21: 96.2790698 | W21: 81.9692590 | X21: 19
A22: 20 | B22: 2020210534 | C22: 张帅 | D22: 工程学硕 | E22: 98.1888889 | F22: 1.0000000 | G22: 0.0000000 | H22: 99.1888889 | I22: 0.8972310 | J22: 89.7231017 | K22: 84.0952381 | L22: 1.8750000 | M22: 0.0000000 | N22: 85.9702381 | O22: 0.7769565 | P22: 77.6956512 | Q22: 100.0000000 | R22: 0.5000000 | S22: 0.0000000 | T22: 100.5000000 | U22: 0.9348837 | V22: 93.4883721 | W22: 81.6804134 | X22: 20
A23: 21 | B23: 2020210544 | C23: 万博欣 | D23: 工程学硕 | E23: 98.0527778 | F23: 4.5000000 | G23: 0.0000000 | H23: 102.5527778 | I23: 0.9276597 | J23: 92.7659681 | K23: 84.6526316 | L23: 0.0000000 | M23: 0.0000000 | N23: 84.6526316 | O23: 0.7650486 | P23: 76.5048636 | Q23: 100.0000000 | R23: 0.5000000 | S23: 0.0000000 | T23: 100.5000000 | U23: 0.9348837 | V23: 93.4883721 | W23: 81.4554354 | X23: 21
A24: 22 | B24: 2020210521 | C24: 陈钊宜 | D24: 工程学硕 | E24: 98.4222222 | F24: 10.7000000 | G24: 0.0000000 | H24: 109.1222222 | I24: 0.9870848 | J24: 98.7084778 | K24: 79.4388235 | L24: 2.5000000 | M24: 0.0000000 | N24: 81.9388235 | O24: 0.7405226 | P24: 74.0522580 | Q24: 100.0000000 | R24: 0.5000000 | S24: 0.0000000 | T24: 100.5000000 | U24: 0.9348837 | V24: 93.4883721 | W24: 80.9271134 | X24: 22
A25: 23 | B25: 2020210533 | C25: 马成龙 | D25: 工程学硕 | E25: 97.9944444 | F25: 0.0000000 | G25: 0.0000000 | H25: 97.9944444 | I25: 0.8864265 | J25: 88.6426454 | K25: 85.1904762 | L25: 0.0000000 | M25: 0.0000000 | N25: 85.1904762 | O25: 0.7699094 | P25: 76.9909410 | Q25: 100.0000000 | R25: 0.0000000 | S25: 0.0000000 | T25: 100.0000000 | U25: 0.9302326 | V25: 93.0232558 | W25: 80.9245133 | X25: 23
A26: 24 | B26: 2020210529 | C26: 张舒婷 | D26: 工程学硕 | E26: 98.2277778 | F26: 4.6000000 | G26: 0.0000000 | H26: 102.8277778 | I26: 0.9301472 | J26: 93.0147244 | K26: 82.1444444 | L26: 0.0000000 | M26: 0.0000000 | N26: 82.1444444 | O26: 0.7423809 | P26: 74.2380881 | Q26: 100.0000000 | R26: 7.5000000 | S26: 0.0000000 | T26: 107.5000000 | U26: 1.0000000 | V26: 100.0000000 | W26: 80.5696065 | X26: 24
A27: 25 | B27: 2020210593 | C27: 李易果 | D27: 工程学硕 | E27: 98.1500000 | F27: 4.5000000 | G27: 0.0000000 | H27: 102.6500000 | I27: 0.9285391 | J27: 92.8539123 | K27: 83.1875000 | L27: 0.0000000 | M27: 0.0000000 | N27: 83.1875000 | O27: 0.7518075 | P27: 75.1807501 | Q27: 100.0000000 | R27: 0.5000000 | S27: 0.0000000 | T27: 100.5000000 | U27: 0.9348837 | V27: 93.4883721 | W27: 80.5461447 | X27: 25
A28: 26 | B28: 2020210633 | C28: 张宇宁 | D28: 工程学硕 | E28: 98.1500000 | F28: 6.5000000 | G28: 0.0000000 | H28: 104.6500000 | I28: 0.9466305 | J28: 94.6630484 | K28: 82.5317647 | L28: 0.0000000 | M28: 0.0000000 | N28: 82.5317647 | O28: 0.7458813 | P28: 74.5881290 | Q28: 100.0000000 | R28: 0.0000000 | S28: 0.0000000 | T28: 100.0000000 | U28: 0.9302326 | V28: 93.0232558 | W28: 80.4466255 | X28: 26
A29: 27 | B29: 2020210616 | C29: 郭玉娇 | D29: 工程学硕 | E29: 98.1500000 | F29: 12.4000000 | G29: 0.0000000 | H29: 110.5500000 | I29: 1.0000000 | J29: 100.0000000 | K29: 80.2647059 | L29: 0.3000000 | M29: 0.0000000 | N29: 80.5647059 | O29: 0.7281040 | P29: 72.8103984 | Q29: 100.0000000 | R29: 0.5000000 | S29: 0.0000000 | T29: 100.5000000 | U29: 0.9348837 | V29: 93.4883721 | W29: 80.3161161 | X29: 27
A30: 28 | B30: 2020210592 | C30: 徐孝杰 | D30: 工程学硕 | E30: 98.3833333 | F30: 0.0000000 | G30: 0.0000000 | H30: 98.3833333 | I30: 0.8899442 | J30: 88.9944218 | K30: 84.0222222 | L30: 0.0000000 | M30: 0.0000000 | N30: 84.0222222 | O30: 0.7593513 | P30: 75.9351308 | Q30: 100.0000000 | R30: 0.5000000 | S30: 0.0000000 | T30: 100.5000000 | U30: 0.9348837 | V30: 93.4883721 | W30: 80.3023131 | X30: 28
A31: 29 | B31: 2020210629 | C31: 吴晓静 | D31: 工程学硕 | E31: 98.0722222 | F31: 0.5000000 | G31: 0.0000000 | H31: 98.5722222 | I31: 0.8916528 | J31: 89.1652847 | K31: 84.0088235 | L31: 0.0000000 | M31: 0.0000000 | N31: 84.0088235 | O31: 0.7592302 | P31: 75.9230217 | Q31: 100.0000000 | R31: 0.0000000 | S31: 0.0000000 | T31: 100.0000000 | U31: 0.9302326 | V31: 93.0232558 | W31: 80.2814977 | X31: 29
A32: 30 | B32: 2020210603 | C32: 谷亚星 | D32: 工程学硕 | E32: 98.2472222 | F32: 10.1000000 | G32: 0.0000000 | H32: 108.3472222 | I32: 0.9800744 | J32: 98.0074376 | K32: 80.6631579 | L32: 0.0000000 | M32: 0.0000000 | N32: 80.6631579 | O32: 0.7289937 | P32: 72.8993745 | Q32: 100.0000000 | R32: 0.5000000 | S32: 0.0000000 | T32: 100.5000000 | U32: 0.9348837 | V32: 93.4883721 | W32: 79.9798869 | X32: 30
A33: 31 | B33: 2020210558 | C33: 王天琪 | D33: 工程学硕 | E33: 98.1694444 | F33: 0.0000000 | G33: 0.0000000 | H33: 98.1694444 | I33: 0.8880094 | J33: 88.8009448 | K33: 83.5350000 | L33: 0.0000000 | M33: 0.0000000 | N33: 83.5350000 | O33: 0.7549480 | P33: 75.4948034 | Q33: 100.0000000 | R33: 0.5000000 | S33: 0.0000000 | T33: 100.5000000 | U33: 0.9348837 | V33: 93.4883721 | W33: 79.9553886 | X33: 31
A34: 32 | B34: 2020210557 | C34: 田成宝 | D34: 工程学硕 | E34: 98.1305556 | F34: 0.0000000 | G34: 0.0000000 | H34: 98.1305556 | I34: 0.8876577 | J34: 88.7657671 | K34: 80.4400000 | L34: 0.0000000 | M34: 0.0000000 | N34: 80.4400000 | O34: 0.7269770 | P34: 72.6976954 | Q34: 100.0000000 | R34: 0.5000000 | S34: 0.0000000 | T34: 100.5000000 | U34: 0.9348837 | V34: 93.4883721 | W34: 77.9903774 | X34: 32
A35: 33 | B35: 2020210604 | C35: 王宇超 | D35: 工程学硕 | E35: 97.9944444 | F35: 0.0000000 | G35: 0.0000000 | H35: 97.9944444 | I35: 0.8864265 | J35: 88.6426454 | K35: 80.4200000 | L35: 0.0000000 | M35: 0.0000000 | N35: 80.4200000 | O35: 0.7267962 | P35: 72.6796204 | Q35: 100.0000000 | R35: 0.0000000 | S35: 0.0000000 | T35: 100.0000000 | U35: 0.9302326 | V35: 93.0232558 | W35: 77.9065890 | X35: 33
A36: 34 | B36: 2020210547 | C36: 朱然 | D36: 工程学硕 | E36: 98.1694444 | F36: 0.5000000 | G36: 0.0000000 | H36: 98.6694444 | I36: 0.8925323 | J36: 89.2532288 | K36: 80.0676471 | L36: 0.0083333 | M36: 0.0000000 | N36: 80.0759804 | O36: 0.7236871 | P36: 72.3687125 | Q36: 100.0000000 | R36: 0.0000000 | S36: 0.0000000 | T36: 100.0000000 | U36: 0.9302326 | V36: 93.0232558 | W36: 77.8110701 | X36: 34
A37: 35 | B37: 2020210584 | C37: 褚延松 | D37: 工程学硕 | E37: 98.0916667 | F37: 0.5000000 | G37: 0.0000000 | H37: 98.5916667 | I37: 0.8918287 | J37: 89.1828735 | K37: 79.9666667 | L37: 0.0000000 | M37: 0.0000000 | N37: 79.9666667 | O37: 0.7226992 | P37: 72.2699202 | Q37: 100.0000000 | R37: 0.0000000 | S37: 0.0000000 | T37: 100.0000000 | U37: 0.9302326 | V37: 93.0232558 | W37: 77.7278444 | X37: 35
A38: 36 | B38: 2020210546 | C38: 卜禹豪 | D38: 工程学硕 | E38: 98.0722222 | F38: 3.5000000 | G38: 0.0000000 | H38: 101.5722222 | I38: 0.9187899 | J38: 91.8789889 | K38: 78.9411765 | L38: 0.0000000 | M38: 0.0000000 | N38: 78.9411765 | O38: 0.7134313 | P38: 71.3431328 | Q38: 100.0000000 | R38: 0.5000000 | S38: 0.0000000 | T38: 100.5000000 | U38: 0.9348837 | V38: 93.4883721 | W38: 77.6648280 | X38: 36
A39: 37 | B39: 2020210609 | C39: 郑志航 | D39: 工程学硕 | E39: 98.0916667 | F39: 0.0000000 | G39: 0.0000000 | H39: 98.0916667 | I39: 0.8873059 | J39: 88.7305895 | K39: 77.0750000 | L39: 0.0000000 | M39: 0.0000000 | N39: 77.0750000 | O39: 0.6965657 | P39: 69.6565748 | Q39: 100.0000000 | R39: 0.5000000 | S39: 0.0000000 | T39: 100.5000000 | U39: 0.9348837 | V39: 93.4883721 | W39: 75.8545575 | X39: 37

Sheet 工程专硕
A1: 序号 | B1: 学号 | C1: 姓名 | D1: 方向 | E1: 德育成绩 | K1: 智育成绩 | Q1: 文体成绩 | W1: 总分 | X1: 排名
E2: 基础分 | F2: 奖励分 | G2: 惩罚分 | H2: 个人德育总分 | I2: 个人德育总分/基准 | J2: 德育总成绩 | K2: 学习成绩分 | L2: 奖励分 | M2: 惩罚分 | N2: 个人智育总分 | O2: 个人智育总分/基准 | P2: 智育总成绩 | Q2: 基本分 | R2: 奖励分 | S2: 惩罚分 | T2: 个人文体总分 | U2: 个人文体总分/基准 | V2: 文体总成绩
A3: 1 | B3: 2020215352 | C3: 许振彬 | D3: 工程专硕 | E3: 98.5 | F3: 6.1 | G3: 0 | H3: =E3+F3+G3 -> 104.6000000 | I3: 0.9730233 | J3: =I3*100 -> 97.30232558 | K3: 90.0888889 | L3: 0 | M3: 0 | N3: =K3+L3+M3 -> 90.0888889 | O3: 0.9978462864 | P3: =O3*100 -> 99.78462864 | Q3: 100 | R3: 0 | S3: 0 | T3: =Q3+R3+S3 -> 100.0000000 | U3: 0.9478672986 | V3: =U3*100 -> 94.78672986 | W3: =J3*0.2+P3*0.7+V3*0.1 -> 98.78837815 | X3: 1
A4: 2 | B4: 2020215301 | C4: 任东伟 | D4: 工程专硕 | E4: 98.5 | F4: 7.8 | G4: 0 | H4: 106.3000000 | I4: 0.9888372 | J4: 98.88372093 | K4: 87.3055556 | L4: 1.25 | M4: 0 | N4: 88.5555556 | O4: 0.9808627161 | P4: 98.08627161 | Q4: 100 | R4: 2.433333333 | S4: 0 | T4: 102.4333333 | U4: 0.9709320695 | V4: 97.09320695 | W4: 98.14645501 | X4: 2
A5: 3 | B5: 2020215332 | C5: 史柯柯 | D5: 工程专硕 | E5: 98.5 | F5: 7 | G5: 0 | H5: 105.5000000 | I5: 0.9813953 | J5: 98.13953488 | K5: 88.9722222 | L5: 0 | M5: 0 | N5: 88.9722222 | O5: 0.9854778167 | P5: 98.54778167 | Q5: 100 | R5: 0.5 | S5: 0 | T5: 100.5000000 | U5: 0.9526066351 | V5: 95.26066351 | W5: 98.1374205 | X5: 3
A6: 4 | B6: 2020215317 | C6: 杨宵 | D6: 工程专硕 | E6: 98.5 | F6: 0 | G6: 0 | H6: 98.5000000 | I6: 0.9162791 | J6: 91.62790698 | K6: 90.2833333 | L6: 0 | M6: 0 | N6: 90.2833333 | O6: 1 | P6: 100 | Q6: 100 | R6: 0.5 | S6: 0 | T6: 100.5000000 | U6: 0.9526066351 | V6: 95.26066351 | W6: 97.85164775 | X6: 4
A7: 5 | B7: 2020215302 | C7: 郭江峰 | D7: 工程专硕 | E7: 98.5 | F7: 5 | G7: 0 | H7: 103.5000000 | I7: 0.9627907 | J7: 96.27906977 | K7: 88.7611111 | L7: 0 | M7: 0 | N7: 88.7611111 | O7: 0.9831394991 | P7: 98.31394991 | Q7: 100 | R7: 0.5 | S7: 0 | T7: 100.5000000 | U7: 0.9526066351 | V7: 95.26066351 | W7: 97.60164524 | X7: 5
A8: 6 | B8: 2020215320 | C8: 魏恒 | D8: 工程专硕 | E8: 98.5 | F8: 3 | G8: 0 | H8: 101.5000000 | I8: 0.9441860 | J8: 94.41860465 | K8: 88.8250000 | L8: 0 | M8: 0 | N8: 88.8250000 | O8: 0.9838471479 | P8: 98.38471479 | Q8: 100 | R8: 0.5 | S8: 0 | T8: 100.5000000 | U8: 0.9526066351 | V8: 95.26066351 | W8: 97.27908763 | X8: 6
A9: 7 | B9: 2020215351 | C9: 崔登峰 | D9: 工程专硕 | E9: 98.5 | F9: 4.5 | G9: 0 | H9: 103.0000000 | I9: 0.9581395 | J9: 95.81395349 | K9: 87.9055556 | L9: 0 | M9: 0 | N9: 87.9055556 | O9: 0.9736631592 | P9: 97.36631592 | Q9: 100 | R9: 0 | S9: 0 | T9: 100.0000000 | U9: 0.9478672986 | V9: 94.78672986 | W9: 96.79788483 | X9: 7
A10: 8 | B10: 2020215331 | C10: 杨洪 | D10: 工程专硕 | E10: 98.5 | F10: 0.5 | G10: 0 | H10: 99.0000000 | I10: 0.9209302 | J10: 92.09302326 | K10: 88.1775000 | L10: 0 | M10: 0 | N10: 88.1775000 | O10: 0.9766752815 | P10: 97.66752815 | Q10: 100 | R10: 0.5 | S10: 0 | T10: 100.5000000 | U10: 0.9526066351 | V10: 95.26066351 | W10: 96.31194071 | X10: 8
A11: 9 | B11: 2020215311 | C11: 赵志豪 | D11: 工程专硕 | E11: 98.5 | F11: 9 | G11: 0 | H11: 107.5000000 | I11: 1.0000000 | J11: 100 | K11: 85.5352941 | L11: 0 | M11: 0 | N11: 85.5352941 | O11: 0.9474095712 | P11: 94.74095712 | Q11: 100 | R11: 0.5 | S11: 0 | T11: 100.5000000 | U11: 0.9526066351 | V11: 95.26066351 | W11: 95.84473633 | X11: 9
A12: 10 | B12: 2020215308 | C12: 骆湘伟 | D12: 工程专硕 | E12: 98.5 | F12: 4.5 | G12: 0 | H12: 103.0000000 | I12: 0.9581395 | J12: 95.81395349 | K12: 80.4588235 | L12: 5 | M12: 0 | N12: 85.4588235 | O12: 0.9465625645 | P12: 94.65625645 | Q12: 100 | R12: 5.5 | S12: 0 | T12: 105.5000000 | U12: 1 | V12: 100 | W12: 95.42217021 | X12: 10
A13: 11 | B13: 2020215364 | C13: 任松 | D13: 工程专硕 | E13: 98.5 | F13: 5 | G13: 0 | H13: 103.5000000 | I13: 0.9627907 | J13: 96.27906977 | K13: 85.9157895 | L13: 0 | M13: 0 | N13: 85.9157895 | O13: 0.9516240296 | P13: 95.16240296 | Q13: 100 | R13: 0.5 | S13: 0 | T13: 100.5000000 | U13: 0.9526066351 | V13: 95.26066351 | W13: 95.39556238 | X13: 11
A14: 12 | B14: 2020215321 | C14: 张鹏鹤 | D14: 工程专硕 | E14: 98.5 | F14: 0 | G14: 0 | H14: 98.5000000 | I14: 0.9162791 | J14: 91.62790698 | K14: 86.8000000 | L14: 0 | M14: 0 | N14: 86.8000000 | O14: 0.9614177589 | P14: 96.14177589 | Q14: 100 | R14: 0 | S14: 0 | T14: 100.0000000 | U14: 0.9478672986 | V14: 94.78672986 | W14: 95.1034975 | X14: 12
A15: 13 | B15: 2020215323 | C15: 袁锐 | D15: 工程专硕 | E15: 98.5 | F15: 6 | G15: 0 | H15: 104.5000000 | I15: 0.9720930 | J15: 97.20930233 | K15: 82.5789474 | L15: 1.25 | M15: 0 | N15: 83.8289474 | O15: 0.9285096626 | P15: 92.85096626 | Q15: 100 | R15: 0 | S15: 0 | T15: 100.0000000 | U15: 0.9478672986 | V15: 94.78672986 | W15: 93.91620983 | X15: 13
A16: 14 | B16: 2020215319 | C16: 花凯 | D16: 工程专硕 | E16: 98.5 | F16: 0 | G16: 0 | H16: 98.5000000 | I16: 0.9162791 | J16: 91.62790698 | K16: 85.0500000 | L16: 0 | M16: 0 | N16: 85.0500000 | O16: 0.9420343363 | P16: 94.20343363 | Q16: 100 | R16: 0.5 | S16: 0 | T16: 100.5000000 | U16: 0.9526066351 | V16: 95.26066351 | W16: 93.79405129 | X16: 14
A17: 15 | B17: 2020215315 | C17: 李佳泽 | D17: 工程专硕 | E17: 98.5 | F17: 8.5 | G17: 0 | H17: 107.0000000 | I17: 0.9953488 | J17: 99.53488372 | K17: 82.9500000 | L17: 0 | M17: 0 | N17: 82.9500000 | O17: 0.9187742293 | P17: 91.87742293 | Q17: 100 | R17: 0 | S17: 0 | T17: 100.0000000 | U17: 0.9478672986 | V17: 94.78672986 | W17: 93.69984578 | X17: 15
A18: 16 | B18: 2020215336 | C18: 汤浩男 | D18: 工程专硕 | E18: 98.5 | F18: 4.5 | G18: 0 | H18: 103.0000000 | I18: 0.9581395 | J18: 95.81395349 | K18: 83.2062500 | L18: 0 | M18: 0 | N18: 83.2062500 | O18: 0.9216125162 | P18: 92.16125162 | Q18: 100 | R18: 0.5 | S18: 0 | T18: 100.5000000 | U18: 0.9526066351 | V18: 95.26066351 | W18: 93.20173318 | X18: 16
A19: 17 | B19: 2020215316 | C19: 秦宗禹 | D19: 工程专硕 | E19: 98.5 | F19: 0 | G19: 0 | H19: 98.5000000 | I19: 0.9162791 | J19: 91.62790698 | K19: 84.2277778 | L19: 0 | M19: 0 | N19: 84.2277778 | O19: 0.9329272045 | P19: 93.29272045 | Q19: 100 | R19: 0 | S19: 0 | T19: 100.0000000 | U19: 0.9478672986 | V19: 94.78672986 | W19: 93.10915869 | X19: 17
A20: 18 | B20: 2020215370 | C20: 牛磊博 | D20: 工程专硕 | E20: 98.5 | F20: 3.5 | G20: 0 | H20: 102.0000000 | I20: 0.9488372 | J20: 94.88372093 | K20: 83.0803922 | L20: 0 | M20: 0 | N20: 83.0803922 | O20: 0.9202184843 | P20: 92.02184843 | Q20: 100 | R20: 0 | S20: 0 | T20: 100.0000000 | U20: 0.9478672986 | V20: 94.78672986 | W20: 92.87071107 | X20: 18
A21: 19 | B21: 2020215358 | C21: 陶训凯 | D21: 工程专硕 | E21: 98.5 | F21: 3.5 | G21: 0 | H21: 102.0000000 | I21: 0.9488372 | J21: 94.88372093 | K21: 82.7333333 | L21: 0 | M21: 0 | N21: 82.7333333 | O21: 0.916374377 | P21: 91.6374377 | Q21: 100 | R21: 0 | S21: 0 | T21: 100.0000000 | U21: 0.9478672986 | V21: 94.78672986 | W21: 92.60162356 | X21: 19
A22: 20 | B22: 2020215359 | C22: 王佳琪 | D22: 工程专硕 | E22: 98.5 | F22: 3 | G22: 0 | H22: 101.5000000 | I22: 0.9441860 | J22: 94.41860465 | K22: 80.5277778 | L22: 0 | M22: 0 | N22: 80.5277778 | O22: 0.8919451111 | P22: 89.19451111 | Q22: 100 | R22: 0.5 | S22: 0 | T22: 100.5000000 | U22: 0.9526066351 | V22: 95.26066351 | W22: 90.84594506 | X22: 20
A23: 21 | B23: 2020215310 | C23: 姜艳雪 | D23: 工程专硕 | E23: 98.5 | F23: 0.5 | G23: 0 | H23: 99.0000000 | I23: 0.9209302 | J23: 92.09302326 | K23: 80.8558824 | L23: 0 | M23: 0 | N23: 80.8558824 | O23: 0.8955792766 | P23: 89.55792766 | Q23: 100 | R23: 0.5 | S23: 0 | T23: 100.5000000 | U23: 0.9526066351 | V23: 95.26066351 | W23: 90.63522036 | X23: 21
A24: 22 | B24: 2020215366 | C24: 尹雪静 | D24: 工程专硕 | E24: 98.5 | F24: 4.5 | G24: 0 | H24: 103.0000000 | I24: 0.9581395 | J24: 95.81395349 | K24: 79.5020833 | L24: 0 | M24: 0 | N24: 79.5020833 | O24: 0.8805842717 | P24: 88.05842717 | Q24: 100 | R24: 0.5 | S24: 0 | T24: 100.5000000 | U24: 0.9526066351 | V24: 95.26066351 | W24: 90.32975607 | X24: 22
A25: 23 | B25: 2020215348 | C25: 易礼鑫 | D25: 工程专硕 | E25: 98.5 | F25: 0 | G25: 0 | H25: 98.5000000 | I25: 0.9162791 | J25: 91.62790698 | K25: 79.5444444 | L25: 0 | M25: 0 | N25: 79.5444444 | O25: 0.8810534736 | P25: 88.10534736 | Q25: 100 | R25: 0 | S25: 0 | T25: 100.0000000 | U25: 0.9478672986 | V25: 94.78672986 | W25: 89.47799754 | X25: 23
A26: 24 | B26: 2020215377 | C26: 杨再岭 | D26: 工程专硕 | E26: 98.5 | F26: 1 | G26: 0 | H26: 99.5000000 | I26: 0.9255814 | J26: 92.55813953 | K26: 78.3798319 | L26: 0 | M26: 0 | N26: 78.3798319 | O26: 0.8681539442 | P26: 86.81539442 | Q26: 100 | R26: 0.5 | S26: 0 | T26: 100.5000000 | U26: 0.9526066351 | V26: 95.26066351 | W26: 88.80847035 | X26: 24
A27: 25 | B27: 2020215330 | C27: 刘慧敏 | D27: 工程专硕 | E27: 98.5 | F27: 6.5 | G27: 0 | H27: 105.0000000 | I27: 0.9767442 | J27: 97.6744186 | K27: 74.9012500 | L27: 0 | M27: 0 | N27: 74.9012500 | O27: 0.8296243308 | P27: 82.96243308 | Q27: 100 | R27: 0.5 | S27: 0 | T27: 100.5000000 | U27: 0.9526066351 | V27: 95.26066351 | W27: 87.13465323 | X27: 25

Sheet 环工学硕
A1: 序号 | B1: 学号 | C1: 姓名 | D1: 方向 | E1: 德育成绩 | K1: 智育成绩 | Q1: 文体成绩 | W1: 总分 | X1: 排名
E2: 基础分 | F2: 奖励分 | G2: 惩罚分 | H2: 个人德育总分 | I2: 个人德育总分/基准 | J2: 德育总成绩 | K2: 学习成绩分 | L2: 奖励分 | M2: 惩罚分 | N2: 个人智育总分 | O2: 个人智育总分/基准 | P2: 智育总成绩 | Q2: 基本分 | R2: 奖励分 | S2: 惩罚分 | T2: 个人文体总分 | U2: 个人文体总分/基准 | V2: 文体总成绩
A3: 1 | B3: 2020210642 | C3: 岳黎平 | D3: 环工学硕 | E3: 98.1500000 | F3: 4.8000000 | G3: 0.0000000 | H3: =E3+F3+G3 -> 102.9500000 | I3: 0.8605557 | J3: =I3*100 -> 86.0555704 | K3: 84.0491071 | L3: 25.4166667 | M3: 0.0000000 | N3: =K3+L3+M3 -> 109.4657738 | O3: 1.0000000 | P3: =O3*100 -> 100.0000000 | Q3: 100.0000000 | R3: 0.0000000 | S3: 0.0000000 | T3: 100.0000000 | U3: 0.9331260 | V3: =U3*100 -> 93.3125972 | W3: =J3*0.2+P3*0.7+V3*0.1 -> 96.5423738 | X3: 1
A4: 2 | B4: 2020210651 | C4: 刘吉东 | D4: 环工学硕 | E4: 98.2060000 | F4: 3.5000000 | G4: 0.0000000 | H4: 101.7060000 | I4: 0.8501571 | J4: 85.0157149 | K4: 83.3750000 | L4: 12.0000000 | M4: 0.0000000 | N4: 95.3750000 | O4: 0.8712769 | P4: 87.1276899 | Q4: 100.0000000 | R4: 0.5000000 | S4: 0.0000000 | T4: 100.5000000 | U4: 0.9377916 | V4: 93.7791602 | W4: 87.3704419 | X4: 2
A5: 3 | B5: 2020210655 | C5: 辛文卓 | D5: 环工学硕 | E5: 98.3180000 | F5: 14.3000000 | G5: 0.0000000 | H5: 112.6180000 | I5: 0.9413702 | J5: 94.1370202 | K5: 88.8640000 | L5: 1.6444444 | M5: 0.0000000 | N5: 90.5084444 | O5: 0.8268196 | P5: 82.6819574 | Q5: 100.0000000 | R5: 0.5000000 | S5: 0.0000000 | T5: 100.5000000 | U5: 0.9377916 | V5: 93.7791602 | W5: 86.0826902 | X5: 3
A6: 4 | B6: 2020210637 | C6: 宋艳珂 | D6: 环工学硕 | E6: 98.2620000 | F6: 11.0000000 | G6: 0.0000000 | H6: 109.2620000 | I6: 0.9133175 | J6: 91.3317507 | K6: 89.2250000 | L6: 0.4444444 | M6: 0.0000000 | N6: 89.6694444 | O6: 0.8191551 | P6: 81.9155078 | Q6: 100.0000000 | R6: 0.5000000 | S6: 0.0000000 | T6: 100.5000000 | U6: 0.9377916 | V6: 93.7791602 | W6: 84.9851216 | X6: 4
A7: 5 | B7: 2020210654 | C7: 陆文懿 | D7: 环工学硕 | E7: 98.2340000 | F7: 5.0000000 | G7: 0.0000000 | H7: 103.2340000 | I7: 0.8629297 | J7: 86.2929651 | K7: 84.6410714 | L7: 4.4500000 | M7: 0.0000000 | N7: 89.0910714 | O7: 0.8138715 | P7: 81.3871481 | Q7: 100.0000000 | R7: 7.1666667 | S7: 0.0000000 | T7: 107.1666667 | U7: 1.0000000 | V7: 100.0000000 | W7: 84.2295967 | X7: 5
A8: 6 | B8: 2020210648 | C8: 刘涵钰 | D8: 环工学硕 | E8: 98.2480000 | F8: 5.0000000 | G8: 0.0000000 | H8: 103.2480000 | I8: 0.8630467 | J8: 86.3046676 | K8: 89.5937500 | L8: 0.0000000 | M8: 0.0000000 | N8: 89.5937500 | O8: 0.8184636 | P8: 81.8463588 | Q8: 100.0000000 | R8: 0.0000000 | S8: 0.0000000 | T8: 100.0000000 | U8: 0.9331260 | V8: 93.3125972 | W8: 83.8846444 | X8: 6
A9: 7 | B9: 2020210639 | C9: 张亚宁 | D9: 环工学硕 | E9: 98.3320000 | F9: 21.3000000 | G9: 0.0000000 | H9: 119.6320000 | I9: 1.0000000 | J9: 100.0000000 | K9: 81.1537500 | L9: 0.2000000 | M9: 0.0000000 | N9: 81.3537500 | O9: 0.7431889 | P9: 74.3188918 | Q9: 100.0000000 | R9: 4.7666667 | S9: 0.0000000 | T9: 104.7666667 | U9: 0.9776050 | V9: 97.7604977 | W9: 81.7992740 | X9: 7
A10: 8 | B10: 2020210662 | C10: 李雪 | D10: 环工学硕 | E10: 98.2620000 | F10: 5.0000000 | G10: 0.0000000 | H10: 103.2620000 | I10: 0.8631637 | J10: 86.3163702 | K10: 85.8187500 | L10: 0.2777778 | M10: 0.0000000 | N10: 86.0965278 | O10: 0.7865155 | P10: 78.6515500 | Q10: 100.0000000 | R10: 0.5000000 | S10: 0.0000000 | T10: 100.5000000 | U10: 0.9377916 | V10: 93.7791602 | W10: 81.6972750 | X10: 8
A11: 9 | B11: 2020210640 | C11: 曹佳美 | D11: 环工学硕 | E11: 98.2200000 | F11: 0.0000000 | G11: 0.0000000 | H11: 98.2200000 | I11: 0.8210178 | J11: 82.1017788 | K11: 85.9937500 | L11: 0.0000000 | M11: 0.0000000 | N11: 85.9937500 | O11: 0.7855766 | P11: 78.5576596 | Q11: 100.0000000 | R11: 0.0000000 | S11: 0.0000000 | T11: 100.0000000 | U11: 0.9331260 | V11: 93.3125972 | W11: 80.7419772 | X11: 9
A12: 10 | B12: 2020210641 | C12: 通拉嘎 | D12: 环工学硕 | E12: 98.3040000 | F12: 3.5000000 | G12: 0.0000000 | H12: 101.8040000 | I12: 0.8509763 | J12: 85.0976327 | K12: 84.4155000 | L12: 0.0000000 | M12: 0.0000000 | N12: 84.4155000 | O12: 0.7711588 | P12: 77.1158848 | Q12: 100.0000000 | R12: 3.5000000 | S12: 0.0000000 | T12: 103.5000000 | U12: 0.9657854 | V12: 96.5785381 | W12: 80.6584997 | X12: 10
A13: 11 | B13: 2020210658 | C13: 刘申宁 | D13: 环工学硕 | E13: 98.1780000 | F13: 6.0000000 | G13: 0.0000000 | H13: 104.1780000 | I13: 0.8708205 | J13: 87.0820516 | K13: 83.3466667 | L13: 0.0000000 | M13: 0.0000000 | N13: 83.3466667 | O13: 0.7613948 | P13: 76.1394761 | Q13: 100.0000000 | R13: 0.0000000 | S13: 0.0000000 | T13: 100.0000000 | U13: 0.9331260 | V13: 93.3125972 | W13: 80.0453033 | X13: 11
A14: 12 | B14: 2020210644 | C14: 刘恩会 | D14: 环工学硕 | E14: 98.2620000 | F14: 9.3000000 | G14: 0.0000000 | H14: 107.5620000 | I14: 0.8991073 | J14: 89.9107262 | K14: 82.0666667 | L14: 0.0000000 | M14: 0.0000000 | N14: 82.0666667 | O14: 0.7497016 | P14: 74.9701608 | Q14: 100.0000000 | R14: 0.5000000 | S14: 0.0000000 | T14: 100.5000000 | U14: 0.9377916 | V14: 93.7791602 | W14: 79.8391738 | X14: 12
A15: 13 | B15: 2020210652 | C15: 王声韩 | D15: 环工学硕 | E15: 98.3460000 | F15: 10.6000000 | G15: 0.0000000 | H15: 108.9460000 | I15: 0.9106761 | J15: 91.0676073 | K15: 80.6962500 | L15: 0.4027778 | M15: 0.0000000 | N15: 81.0990278 | O15: 0.7408620 | P15: 74.0861960 | Q15: 100.0000000 | R15: 0.5000000 | S15: 0.0000000 | T15: 100.5000000 | U15: 0.9377916 | V15: 93.7791602 | W15: 79.4517747 | X15: 13
A16: 14 | B16: 2020210653 | C16: 闫琦 | D16: 环工学硕 | E16: 98.4020000 | F16: 15.0000000 | G16: 0.0000000 | H16: 113.4020000 | I16: 0.9479236 | J16: 94.7923632 | K16: 79.3125000 | L16: 0.2777778 | M16: 0.0000000 | N16: 79.5902778 | O16: 0.7270791 | P16: 72.7079113 | Q16: 100.0000000 | R16: 0.5000000 | S16: 0.0000000 | T16: 100.5000000 | U16: 0.9377916 | V16: 93.7791602 | W16: 79.2319266 | X16: 14
A17: 15 | B17: 2020210667 | C17: 徐瑞 | D17: 环工学硕 | E17: 98.2480000 | F17: 0.0000000 | G17: 0.0000000 | H17: 98.2480000 | I17: 0.8212518 | J17: 82.1251839 | K17: 81.7187500 | L17: 0.0000000 | M17: 0.0000000 | N17: 81.7187500 | O17: 0.7465233 | P17: 74.6523294 | Q17: 100.0000000 | R17: 0.5000000 | S17: 0.0000000 | T17: 100.5000000 | U17: 0.9377916 | V17: 93.7791602 | W17: 78.0595833 | X17: 15
A18: 16 | B18: 2020210645 | C18: 张苗 | D18: 环工学硕 | E18: 98.2620000 | F18: 0.5000000 | G18: 0.0000000 | H18: 98.7620000 | I18: 0.8255483 | J18: 82.5548348 | K18: 81.5933333 | L18: 0.0000000 | M18: 0.0000000 | N18: 81.5933333 | O18: 0.7453776 | P18: 74.5377578 | Q18: 100.0000000 | R18: 0.0000000 | S18: 0.0000000 | T18: 100.0000000 | U18: 0.9331260 | V18: 93.3125972 | W18: 78.0186571 | X18: 16
A19: 17 | B19: 2020210661 | C19: 程昊 | D19: 环工学硕 | E19: 98.1920000 | F19: 0.0000000 | G19: 0.0000000 | H19: 98.1920000 | I19: 0.8207837 | J19: 82.0783737 | K19: 76.5666667 | L19: 0.0000000 | M19: 0.0000000 | N19: 76.5666667 | O19: 0.6994576 | P19: 69.9457593 | Q19: 100.0000000 | R19: 0.0000000 | S19: 0.0000000 | T19: 100.0000000 | U19: 0.9331260 | V19: 93.3125972 | W19: 74.7089660 | X19: 17
A20: 18 | B20: 2020210657 | C20: 李潇 | D20: 环工学硕 | E20: 98.2200000 | F20: 0.0000000 | G20: 0.0000000 | H20: 98.2200000 | I20: 0.8210178 | J20: 82.1017788 | K20: 74.2900000 | L20: 0.0000000 | M20: 0.0000000 | N20: 74.2900000 | O20: 0.6786596 | P20: 67.8659616 | Q20: 100.0000000 | R20: 0.0000000 | S20: 0.0000000 | T20: 100.0000000 | U20: 0.9331260 | V20: 93.3125972 | W20: 73.2577886 | X20: 18
A21: 19 | B21: 2020210663 | C21: 刘远仪 | D21: 环工学硕 | E21: 95.1360000 | F21: 5.0000000 | G21: 0.0000000 | H21: 100.1360000 | I21: 0.8370336 | J21: 83.7033570 | K21: 71.6312500 | L21: 0.0000000 | M21: 0.0000000 | N21: 71.6312500 | O21: 0.6543712 | P21: 65.4371202 | Q21: 100.0000000 | R21: 0.0000000 | S21: 0.0000000 | T21: 100.0000000 | U21: 0.9331260 | V21: 93.3125972 | W21: 71.8779153 | X21: 19

Sheet 环工专硕
A1: 序号 | B1: 学号 | C1: 姓名 | D1: 方向 | E1: 德育成绩 | K1: 智育成绩 | Q1: 文体成绩 | W1: 总分 | X1: 排名
E2: 基础分 | F2: 奖励分 | G2: 惩罚分 | H2: 个人德育总分 | I2: 个人德育总分/基准 | J2: 德育总成绩 | K2: 学习成绩分 | L2: 奖励分 | M2: 惩罚分 | N2: 个人智育总分 | O2: 个人智育总分/基准 | P2: 智育总成绩 | Q2: 基本分 | R2: 奖励分 | S2: 惩罚分 | T2: 个人文体总分 | U2: 个人文体总分/基准 | V2: 文体总成绩
A3: 1 | B3: 2020215378 | C3: 张鑫倩 | D3: 环工专硕 | E3: 98.2200000 | F3: 14.8000000 | G3: 0.0000000 | H3: =E3+F3+G3 -> 113.0200000 | I3: 0.9947367 | J3: =I3*100 -> 99.4736749 | K3: 88.2831579 | L3: 3.1777778 | M3: 0.0000000 | N3: =K3+L3+M3 -> 91.4609357 | O3: 0.9742016 | P3: =O3*100 -> 97.4201620 | Q3: 100.0000000 | R3: 0.5000000 | S3: 0.0000000 | T3: =Q3+R3+S3 -> 100.5000000 | U3: 0.9601911 | V3: =U3*100 -> 96.0191082 | W3: =J3*0.2+P3*0.7+V3*0.1 -> 97.6907592 | X3: 1
A4: 2 | B4: 2020215393 | C4: 李智 | D4: 环工专硕 | E4: 98.2200000 | F4: 3.5000000 | G4: 0.0000000 | H4: 101.7200000 | I4: 0.8952807 | J4: 89.5280677 | K4: 87.0907563 | L4: 6.7922078 | M4: 0.0000000 | N4: 93.8829641 | O4: 1.0000000 | P4: 100.0000000 | Q4: 100.0000000 | R4: 0.5000000 | S4: 0.0000000 | T4: 100.5000000 | U4: 0.9601911 | V4: 96.0191082 | W4: 97.5075244 | X4: 2
A5: 3 | B5: 2020215394 | C5: 屈彤旭 | D5: 环工专硕 | E5: 98.3040000 | F5: 10.0000000 | G5: 0.0000000 | H5: 108.3040000 | I5: 0.9532292 | J5: 95.3229242 | K5: 85.1655462 | L5: 4.9747475 | M5: 0.0000000 | N5: 90.1402937 | O5: 0.9601347 | P5: 96.0134723 | Q5: 100.0000000 | R5: 0.5000000 | S5: 0.0000000 | T5: 100.5000000 | U5: 0.9601911 | V5: 96.0191082 | W5: 95.8759262 | X5: 3
A6: 4 | B6: 2020215389 | C6: 程鑫 | D6: 环工专硕 | E6: 95.1780000 | F6: 6.0000000 | G6: 0.0000000 | H6: 101.1780000 | I6: 0.8905103 | J6: 89.0510306 | K6: 89.4485714 | L6: 0.0000000 | M6: 0.0000000 | N6: 89.4485714 | O6: 0.9527668 | P6: 95.2766802 | Q6: 100.0000000 | R6: 0.5000000 | S6: 0.0000000 | T6: 100.5000000 | U6: 0.9601911 | V6: 96.0191082 | W6: 94.1057931 | X6: 4
A7: 5 | B7: 2020215392 | C7: 陈稼轩 | D7: 环工专硕 | E7: 98.1500000 | F7: 12.8000000 | G7: 0.0000000 | H7: 110.9500000 | I7: 0.9765178 | J7: 97.6517805 | K7: 83.9312500 | L7: 2.5000000 | M7: 0.0000000 | N7: 86.4312500 | O7: 0.9206276 | P7: 92.0627622 | Q7: 100.0000000 | R7: 0.5000000 | S7: 0.0000000 | T7: 100.5000000 | U7: 0.9601911 | V7: 96.0191082 | W7: 93.5762005 | X7: 5
A8: 6 | B8: 2020215379 | C8: 吴抒悦 | D8: 环工专硕 | E8: 98.3180000 | F8: 15.3000000 | G8: 0.0000000 | H8: 113.6180000 | I8: 1.0000000 | J8: 100.0000000 | K8: 85.3631579 | L8: 0.4000000 | M8: 0.0000000 | N8: 85.7631579 | O8: 0.9135114 | P8: 91.3511399 | Q8: 100.0000000 | R8: 0.5000000 | S8: 0.0000000 | T8: 100.5000000 | U8: 0.9601911 | V8: 96.0191082 | W8: 93.5477088 | X8: 6
A9: 7 | B9: 2020215386 | C9: 刘婧 | D9: 环工专硕 | E9: 98.2340000 | F9: 14.3000000 | G9: 0.0000000 | H9: 112.5340000 | I9: 0.9904593 | J9: 99.0459258 | K9: 84.9233333 | L9: 1.0000000 | M9: 0.0000000 | N9: 85.9233333 | O9: 0.9152175 | P9: 91.5217517 | Q9: 100.0000000 | R9: 0.5000000 | S9: 0.0000000 | T9: 100.5000000 | U9: 0.9601911 | V9: 96.0191082 | W9: 93.4763222 | X9: 7
A10: 8 | B10: 2020215383 | C10: 张婷婷 | D10: 环工专硕 | E10: 98.2480000 | F10: 8.0000000 | G10: 0.0000000 | H10: 106.2480000 | I10: 0.9351335 | J10: 93.5133518 | K10: 85.9055556 | L10: 0.0000000 | M10: 0.0000000 | N10: 85.9055556 | O10: 0.9150282 | P10: 91.5028156 | Q10: 100.0000000 | R10: 4.6666667 | S10: 0.0000000 | T10: 104.6666667 | U10: 1.0000000 | V10: 100.0000000 | W10: 92.7546413 | X10: 8
A11: 9 | B11: 2020215391 | C11: 陈思媛 | D11: 环工专硕 | E11: 98.3040000 | F11: 9.9000000 | G11: 0.0000000 | H11: 108.2040000 | I11: 0.9523491 | J11: 95.2349100 | K11: 85.0044444 | L11: 0.1666667 | M11: 0.0000000 | N11: 85.1711111 | O11: 0.9072052 | P11: 90.7205178 | Q11: 100.0000000 | R11: 4.6666667 | S11: 0.0000000 | T11: 104.6666667 | U11: 1.0000000 | V11: 100.0000000 | W11: 92.5513444 | X11: 9
A12: 10 | B12: 2020215390 | C12: 杨云飞 | D12: 环工专硕 | E12: 98.3320000 | F12: 14.5000000 | G12: 0.0000000 | H12: 112.8320000 | I12: 0.9930821 | J12: 99.3082082 | K12: 84.4419048 | L12: 0.0000000 | M12: 0.0000000 | N12: 84.4419048 | O12: 0.8994380 | P12: 89.9437993 | Q12: 100.0000000 | R12: 0.5000000 | S12: 0.0000000 | T12: 100.5000000 | U12: 0.9601911 | V12: 96.0191082 | W12: 92.4242119 | X12: 10
A13: 11 | B13: 2020215388 | C13: 徐俊发 | D13: 环工专硕 | E13: 98.3040000 | F13: 0.0000000 | G13: 0.0000000 | H13: 98.3040000 | I13: 0.8652150 | J13: 86.5215019 | K13: 86.5705556 | L13: 0.0000000 | M13: 0.0000000 | N13: 86.5705556 | O13: 0.9221114 | P13: 92.2111444 | Q13: 100.0000000 | R13: 0.0000000 | S13: 0.0000000 | T13: 100.0000000 | U13: 0.9554140 | V13: 95.5414012 | W13: 91.4062416 | X13: 11
A14: 12 | B14: 2020215380 | C14: 何柳婧 | D14: 环工专硕 | E14: 98.2620000 | F14: 10.0000000 | G14: 0.0000000 | H14: 108.2620000 | I14: 0.9528596 | J14: 95.2859582 | K14: 84.0155556 | L14: 0.0000000 | M14: 0.0000000 | N14: 84.0155556 | O14: 0.8948967 | P14: 89.4896709 | Q14: 100.0000000 | R14: 0.5000000 | S14: 0.0000000 | T14: 100.5000000 | U14: 0.9601911 | V14: 96.0191082 | W14: 91.3018721 | X14: 12
A15: 13 | B15: 2020215384 | C15: 谢亚利 | D15: 环工专硕 | E15: 98.3460000 | F15: 4.5000000 | G15: 0.0000000 | H15: 102.8460000 | I15: 0.9051911 | J15: 90.5191079 | K15: 84.9455556 | L15: 0.0000000 | M15: 0.0000000 | N15: 84.9455556 | O15: 0.9048027 | P15: 90.4802659 | Q15: 100.0000000 | R15: 0.5000000 | S15: 0.0000000 | T15: 100.5000000 | U15: 0.9601911 | V15: 96.0191082 | W15: 91.0419185 | X15: 13
A16: 14 | B16: 2020215385 | C16: 岳刚森 | D16: 环工专硕 | E16: 98.3180000 | F16: 0.0000000 | G16: 0.0000000 | H16: 98.3180000 | I16: 0.8653382 | J16: 86.5338239 | K16: 82.5937500 | L16: 0.0000000 | M16: 0.0000000 | N16: 82.5937500 | O16: 0.8797523 | P16: 87.9752262 | Q16: 100.0000000 | R16: 0.5000000 | S16: 0.0000000 | T16: 100.5000000 | U16: 0.9601911 | V16: 96.0191082 | W16: 88.4913339 | X16: 14
A17: 15 | B17: 2020215381 | C17: 乔宇 | D17: 环工专硕 | E17: 98.1220000 | F17: 0.0000000 | G17: 0.0000000 | H17: 98.1220000 | I17: 0.8636132 | J17: 86.3613160 | K17: 81.2350000 | L17: 0.0000000 | M17: 0.0000000 | N17: 81.2350000 | O17: 0.8652795 | P17: 86.5279455 | Q17: 100.0000000 | R17: 0.0000000 | S17: 0.0000000 | T17: 100.0000000 | U17: 0.9554140 | V17: 95.5414012 | W17: 87.3959652 | X17: 15
A18: 16 | B18: 2020215387 | C18: 刘洪加 | D18: 环工专硕 | E18: 98.3040000 | F18: 0.0000000 | G18: 0.0000000 | H18: 98.3040000 | I18: 0.8652150 | J18: 86.5215019 | K18: 80.0994444 | L18: 0.0000000 | M18: 0.0000000 | N18: 80.0994444 | O18: 0.8531840 | P18: 85.3184017 | Q18: 100.0000000 | R18: 0.0000000 | S18: 0.0000000 | T18: 100.0000000 | U18: 0.9554140 | V18: 95.5414012 | W18: 86.5813217 | X18: 16
A19: 17 | B19: 2020215382 | C19: 华伟聪 | D19: 环工专硕 | E19: 98.3040000 | F19: 0.0000000 | G19: 0.0000000 | H19: 98.3040000 | I19: 0.8652150 | J19: 86.5215019 | K19: 78.8433333 | L19: 0.0000000 | M19: 0.0000000 | N19: 78.8433333 | O19: 0.8398045 | P19: 83.9804475 | Q19: 100.0000000 | R19: 0.0000000 | S19: 0.0000000 | T19: 100.0000000 | U19: 0.9554140 | V19: 95.5414012 | W19: 85.6447537 | X19: 17

Sheet 环科学硕
A1: 序号 | B1: 学号 | C1: 姓名 | D1: 方向 | E1: 德育成绩 | K1: 智育成绩 | Q1: 文体成绩 | W1: 总分 | X1: 排名
E2: 基础分 | F2: 奖励分 | G2: 惩罚分 | H2: 个人德育总分 | I2: 个人德育总分/基准 | J2: 德育总成绩 | K2: 学习成绩分 | L2: 奖励分 | M2: 惩罚分 | N2: 个人智育总分 | O2: 个人智育总分/基准 | P2: 智育总成绩 | Q2: 基本分 | R2: 奖励分 | S2: 惩罚分 | T2: 个人文体总分 | U2: 个人文体总分/基准 | V2: 文体总成绩
A3: 1 | B3: 2020210647 | C3: 王明洋 | D3: 环科学硕 | E3: 98.2480000 | F3: 9.0000000 | G3: 0.0000000 | H3: =E3+F3+G3 -> 107.2480000 | I3: 0.9565636 | J3: =I3*100 -> 95.6563620 | K3: 90.6975000 | L3: 1.7777778 | M3: 0.0000000 | N3: =K3+L3+M3 -> 92.4752778 | O3: 1.0000000 | P3: =O3*100 -> 100.0000000 | Q3: 100.0000000 | R3: 0.0000000 | S3: 0.0000000 | T3: =Q3+R3+S3 -> 100.0000000 | U3: 0.9049774 | V3: =U3*100 -> 90.4977376 | W3: =J3*0.2+P3*0.7+V3*0.1 -> 98.1810462 | X3: 1
A4: 2 | B4: 2020210635 | C4: 李梦扬 | D4: 环科学硕 | E4: 98.3180000 | F4: 13.8000000 | G4: 0.0000000 | H4: 112.1180000 | I4: 1.0000000 | J4: 100.0000000 | K4: 86.4625000 | L4: 2.8750000 | M4: 0.0000000 | N4: 89.3375000 | O4: 0.9660690 | P4: 96.6069009 | Q4: 100.0000000 | R4: 0.5000000 | S4: 0.0000000 | T4: 100.5000000 | U4: 0.9095023 | V4: 90.9502262 | W4: 96.7198533 | X4: 2
A5: 3 | B5: 2020210669 | C5: 刘梦华 | D5: 环科学硕 | E5: 98.1220000 | F5: 3.0000000 | G5: 0.0000000 | H5: 101.1220000 | I5: 0.9019248 | J5: 90.1924758 | K5: 85.3866667 | L5: 5.1255411 | M5: 0.0000000 | N5: 90.5122078 | O5: 0.9787719 | P5: 97.8771948 | Q5: 100.0000000 | R5: 0.0000000 | S5: 0.0000000 | T5: 100.0000000 | U5: 0.9049774 | V5: 90.4977376 | W5: 95.6023053 | X5: 3
A6: 4 | B6: 2020210646 | C6: 刘改过 | D6: 环科学硕 | E6: 98.2340000 | F6: 9.8000000 | G6: 0.0000000 | H6: 108.0340000 | I6: 0.9635741 | J6: 96.3574092 | K6: 86.4875000 | L6: 0.2777778 | M6: 0.0000000 | N6: 86.7652778 | O6: 0.9382538 | P6: 93.8253768 | Q6: 100.0000000 | R6: 0.0000000 | S6: 0.0000000 | T6: 100.0000000 | U6: 0.9049774 | V6: 90.4977376 | W6: 93.9990193 | X6: 4
A7: 5 | B7: 2020210636 | C7: 尚青 | D7: 环科学硕 | E7: 98.3180000 | F7: 9.3000000 | G7: 0.0000000 | H7: 107.6180000 | I7: 0.9598637 | J7: 95.9863715 | K7: 84.4125000 | L7: 0.2777778 | M7: 0.0000000 | N7: 84.6902778 | O7: 0.9158153 | P7: 91.5815338 | Q7: 100.0000000 | R7: 0.5000000 | S7: 0.0000000 | T7: 100.5000000 | U7: 0.9095023 | V7: 90.9502262 | W7: 92.3993706 | X7: 5
A8: 6 | B8: 2020210668 | C8: 李艳晖 | D8: 环科学硕 | E8: 98.1780000 | F8: 0.5000000 | G8: 0.0000000 | H8: 98.6780000 | I8: 0.8801263 | J8: 88.0126296 | K8: 81.3266667 | L8: 4.6969697 | M8: 0.0000000 | N8: 86.0236364 | O8: 0.9302339 | P8: 93.0233879 | Q8: 100.0000000 | R8: 0.0000000 | S8: 0.0000000 | T8: 100.0000000 | U8: 0.9049774 | V8: 90.4977376 | W8: 91.7686712 | X8: 6
A9: 7 | B9: 2020210659 | C9: 李志萌 | D9: 环科学硕 | E9: 98.2200000 | F9: 4.8000000 | G9: 0.0000000 | H9: 103.0200000 | I9: 0.9188534 | J9: 91.8853351 | K9: 83.2052632 | L9: 0.0000000 | M9: 0.0000000 | N9: 83.2052632 | O9: 0.8997568 | P9: 89.9756834 | Q9: 100.0000000 | R9: 0.0000000 | S9: 0.0000000 | T9: 100.0000000 | U9: 0.9049774 | V9: 90.4977376 | W9: 90.4098192 | X9: 7
A10: 8 | B10: 2020210656 | C10: 黄志斌 | D10: 环科学硕 | E10: 98.2620000 | F10: 6.0000000 | G10: 0.0000000 | H10: 104.2620000 | I10: 0.9299310 | J10: 92.9930966 | K10: 82.0222222 | L10: 0.0000000 | M10: 0.0000000 | N10: 82.0222222 | O10: 0.8869638 | P10: 88.6963783 | Q10: 100.0000000 | R10: 0.0000000 | S10: 0.0000000 | T10: 100.0000000 | U10: 0.9049774 | V10: 90.4977376 | W10: 89.7358579 | X10: 8
A11: 9 | B11: 2020210660 | C11: 刘靖 | D11: 环科学硕 | E11: 98.3040000 | F11: 4.8000000 | G11: 0.0000000 | H11: 103.1040000 | I11: 0.9196026 | J11: 91.9602562 | K11: 80.4578947 | L11: 0.2777778 | M11: 0.0000000 | N11: 80.7356725 | O11: 0.8730514 | P11: 87.3051419 | Q11: 100.0000000 | R11: 0.0000000 | S11: 0.0000000 | T11: 100.0000000 | U11: 0.9049774 | V11: 90.4977376 | W11: 88.5554243 | X11: 9
A12: 10 | B12: 2020210670 | C12: 许家宁 | D12: 环科学硕 | E12: 98.1500000 | F12: 0.5000000 | G12: 0.0000000 | H12: 98.6500000 | I12: 0.8798766 | J12: 87.9876559 | K12: 81.5500000 | L12: 0.0000000 | M12: 0.0000000 | N12: 81.5500000 | O12: 0.8818573 | P12: 88.1857313 | Q12: 100.0000000 | R12: 0.0000000 | S12: 0.0000000 | T12: 100.0000000 | U12: 0.9049774 | V12: 90.4977376 | W12: 88.3773169 | X12: 10
A13: 11 | B13: 2020210666 | C13: 朱江 | D13: 环科学硕 | E13: 98.1500000 | F13: 0.0000000 | G13: 0.0000000 | H13: 98.1500000 | I13: 0.8754170 | J13: 87.5416971 | K13: 79.5562500 | L13: 0.0000000 | M13: 0.0000000 | N13: 79.5562500 | O13: 0.8602975 | P13: 86.0297497 | Q13: 100.0000000 | R13: 0.0000000 | S13: 0.0000000 | T13: 100.0000000 | U13: 0.9049774 | V13: 90.4977376 | W13: 86.7789380 | X13: 11
A14: 12 | B14: 2020210665 | C14: 杨宇 | D14: 环科学硕 | E14: 98.2480000 | F14: 0.0000000 | G14: 0.0000000 | H14: 98.2480000 | I14: 0.8762911 | J14: 87.6291051 | K14: 76.1125000 | L14: 0.0000000 | M14: 0.0000000 | N14: 76.1125000 | O14: 0.8230578 | P14: 82.3057814 | Q14: 100.0000000 | R14: 10.5000000 | S14: 0.0000000 | T14: 110.5000000 | U14: 1.0000000 | V14: 100.0000000 | W14: 85.1398680 | X14: 12
A15: 13 | B15: 2020210650 | C15: 张一驰 | D15: 环科学硕 | E15: 98.1080000 | F15: 0.0000000 | G15: 0.0000000 | H15: 98.1080000 | I15: 0.8750424 | J15: 87.5042366 | K15: 71.0533333 | L15: 0.0000000 | M15: 0.0000000 | N15: 71.0533333 | O15: 0.7683495 | P15: 76.8349499 | Q15: 100.0000000 | R15: 0.0000000 | S15: 0.0000000 | T15: 100.0000000 | U15: 0.9049774 | V15: 90.4977376 | W15: 80.3350860 | X15: 13

Sheet 国际班
A1: 序号 | B1: 学号 | C1: 姓名 | D1: 方向 | E1: 德育成绩 | K1: 智育成绩 | Q1: 文体成绩 | W1: 总分 | X1: 排名
E2: 基础分 | F2: 奖励分 | G2: 惩罚分 | H2: 个人德育总分 | I2: 个人德育总分/基准 | J2: 德育总成绩 | K2: 学习成绩分 | L2: 奖励分 | M2: 惩罚分 | N2: 个人智育总分 | O2: 个人智育总分/基准 | P2: 智育总成绩 | Q2: 基本分 | R2: 奖励分 | S2: 惩罚分 | T2: 个人文体总分 | U2: 个人文体总分/基准 | V2: 文体总成绩
A3: 1 | B3: 2020210649 | C3: 刘姝羽 | D3: 国际班 | E3: 98.2760000 | F3: 8.5000000 | G3: 0.0000000 | H3: =E3+F3+G3 -> 106.7760000 | I3: 0.9531869 | J3: =I3*100 -> 95.3186931 | K3: 91.6600000 | L3: 6.0000000 | M3: 0.0000000 | N3: =K3+L3+M3 -> 97.6600000 | O3: 1.0000000 | P3: =O3*100 -> 100.0000000 | Q3: 100.0000000 | R3: 13.8333333 | S3: 0.0000000 | T3: =Q3+R3+S3 -> 113.8333333 | U3: 1.0000000 | V3: =U3*100 -> 100.0000000 | W3: =J3*0.2+P3*0.7+V3*0.1 -> 99.0637386 | X3: 1
A4: 2 | B4: 2020210623 | C4: 孙海晓 | D4: 国际班 | E4: 98.2200000 | F4: 13.8000000 | G4: 0.0000000 | H4: 112.0200000 | I4: 1.0000000 | J4: 100.0000000 | K4: 89.8888889 | L4: 2.0833333 | M4: 0.0000000 | N4: 91.9722222 | O4: 0.9417594 | P4: 94.1759392 | Q4: 100.0000000 | R4: 0.5000000 | S4: 0.0000000 | T4: 100.5000000 | U4: 0.8828697 | V4: 88.2869693 | W4: 94.7518544 | X4: 2
A5: 3 | B5: 2020210578 | C5: 刘恋 | D5: 国际班 | E5: 98.1862069 | F5: 5.5000000 | G5: 0.0000000 | H5: 103.6862069 | I5: 0.9256044 | J5: 92.5604418 | K5: 91.1361111 | L5: 0.0000000 | M5: 0.0000000 | N5: 91.1361111 | O5: 0.9331979 | P5: 93.3197943 | Q5: 100.0000000 | R5: 0.5000000 | S5: 0.0000000 | T5: 100.5000000 | U5: 0.8828697 | V5: 88.2869693 | W5: 92.6646413 | X5: 3
A6: 4 | B6: 2020210564 | C6: 司道润 | D6: 国际班 | E6: 98.3055556 | F6: 11.3000000 | G6: 0.0000000 | H6: 109.6055556 | I6: 0.9784463 | J6: 97.8446309 | K6: 89.0312500 | L6: 0.5000000 | M6: 0.0000000 | N6: 89.5312500 | O6: 0.9167648 | P6: 91.6764796 | Q6: 100.0000000 | R6: 0.5750000 | S6: 0.0000000 | T6: 100.5750000 | U6: 0.8835286 | V6: 88.3528551 | W6: 92.5777474 | X6: 4
A7: 5 | B7: 2020210638 | C7: 余美琪 | D7: 国际班 | E7: 98.2340000 | F7: 6.5000000 | G7: 0.0000000 | H7: 104.7340000 | I7: 0.9349580 | J7: 93.4958043 | K7: 87.3611111 | L7: 2.9000000 | M7: 0.0000000 | N7: 90.2611111 | O7: 0.9242383 | P7: 92.4238287 | Q7: 100.0000000 | R7: 0.0000000 | S7: 0.0000000 | T7: 100.0000000 | U7: 0.8784773 | V7: 87.8477306 | W7: 92.1806140 | X7: 5
A8: 6 | B8: 2020210614 | C8: 罗馨若 | D8: 国际班 | E8: 98.2666667 | F8: 4.5000000 | G8: 0.0000000 | H8: 102.7666667 | I8: 0.9173957 | J8: 91.7395703 | K8: 89.1352381 | L8: 0.0000000 | M8: 0.0000000 | N8: 89.1352381 | O8: 0.9127098 | P8: 91.2709790 | Q8: 100.0000000 | R8: 0.0000000 | S8: 0.0000000 | T8: 100.0000000 | U8: 0.8784773 | V8: 87.8477306 | W8: 91.0223724 | X8: 6
A9: 7 | B9: 2020210579 | C9: 王小雨 | D9: 国际班 | E9: 98.2586207 | F9: 0.5000000 | G9: 0.0000000 | H9: 98.7586207 | I9: 0.8816160 | J9: 88.1615968 | K9: 89.6444444 | L9: 0.0000000 | M9: 0.0000000 | N9: 89.6444444 | O9: 0.9179239 | P9: 91.7923863 | Q9: 100.0000000 | R9: 0.5000000 | S9: 0.0000000 | T9: 100.5000000 | U9: 0.8828697 | V9: 88.2869693 | W9: 90.7156867 | X9: 7
A10: 8 | B10: 2020210617 | C10: 茹婷婷 | D10: 国际班 | E10: 98.2156250 | F10: 12.5000000 | G10: 0.0000000 | H10: 110.7156250 | I10: 0.9883559 | J10: 98.8355874 | K10: 85.6722222 | L10: 0.0000000 | M10: 0.0000000 | N10: 85.6722222 | O10: 0.8772499 | P10: 87.7249869 | Q10: 100.0000000 | R10: 0.5000000 | S10: 0.0000000 | T10: 100.5000000 | U10: 0.8828697 | V10: 88.2869693 | W10: 90.0033052 | X10: 8
A11: 9 | B11: 2020210625 | C11: 乔知秋 | D11: 国际班 | E11: 97.9968750 | F11: 5.5000000 | G11: 0.0000000 | H11: 103.4968750 | I11: 0.9239143 | J11: 92.3914256 | K11: 87.3777778 | L11: 0.0000000 | M11: 0.0000000 | N11: 87.3777778 | O11: 0.8947141 | P11: 89.4714087 | Q11: 100.0000000 | R11: 0.5000000 | S11: 0.0000000 | T11: 100.5000000 | U11: 0.8828697 | V11: 88.2869693 | W11: 89.9369682 | X11: 9
A12: 10 | B12: 2020210588 | C12: 安新茹 | D12: 国际班 | E12: 98.2375000 | F12: 8.5000000 | G12: 0.0000000 | H12: 106.7375000 | I12: 0.9528432 | J12: 95.2843242 | K12: 84.1111111 | L12: 0.0000000 | M12: 0.0000000 | N12: 84.1111111 | O12: 0.8612647 | P12: 86.1264705 | Q12: 100.0000000 | R12: 0.5000000 | S12: 0.0000000 | T12: 100.5000000 | U12: 0.8828697 | V12: 88.2869693 | W12: 88.1740911 | X12: 10
A14: 备注：国际班并非最后排名，还差两名新能源的学生成绩
